Cogmind - Beta 16.1 @@@ ROGUE MODE // 2026.01.15 @ 21:07:42 Player: C0-2MO Result: Destroyed 0b10! Performance ------------- Evolutions (9) 4500 Regions Visited (27) 5400 Robots Destroyed (603) 3015 Value Destroyed (33239) 33239 Prototype IDs (44) 880 Alien Tech Used (8) 1600 Bonus (37437) 37437 TOTAL SCORE: 86071 Bonus ------- Triggered High Security 1000 High Alert Combat Kills 13151 Follower Combat Kills 2475 Entered Garrisons 1200 Used RIF Installer 3500 Met Zhirov 300 Built Enhanced Grunts 300 A7 Reached Mainframe 300 Met R17 at Cetus 500 Used Core Reset Matrix 3000 Met R17 at Research 2000 Met Sigix 2000 Escaped with Sigix 5000 Win 3000 Friendly Fire -289 Cogmind --------- Core Integrity 720/1600 Matter 64/300 Energy 85/100 System Corruption 16% Temperature Cool (6) Movement Treading (140) Location Tau Ceti IV Orbit Parts ------- > --- POWER (2) -------- Matter Drive > --- PROPULSION (9) --- Advanced Medium Treads Advanced Medium Treads Experimental Biometal Heavy Treads > --- UTILITY (4) ------ Huge Storage Unit Faulty Spectral Analyzer > --- WEAPON (10) ------ Enhanced Nova Cannon > --- INVENTORY (25) --- Improved Antigrav System Improved Antigrav System Xenon Bombardment Thruster Xenon Bombardment Thruster Xenon Bombardment Thruster Q-thruster Q-thruster Experimental Cooling System High-capacity Storage Unit Advanced Signal Interpreter Advanced Target Analyzer Matter Filter Advanced Point Defense System Dimensional Node Initializer Subatomic Replicator Fusion Bomb Launcher Sigix Containment Pod Peak State ------------ > --- POWER ------------ Quantum Reactor Quantum Reactor > --- PROPULSION ------- Biometal Medium Treads Enhanced Armored Heavy Treads Enhanced Armored Heavy Treads Enhanced Armored Heavy Treads > --- UTILITY ---------- High-capacity Storage Unit Advanced Target Analyzer Core Analyzer Advanced Force Field > --- WEAPON ----------- Coil Gun Heavy Machine Gun Railgun Hypercooled Linear Accelerator Hypercooled Linear Accelerator Hypercooled Linear Accelerator Hypercooled Linear Accelerator Hypercooled Linear Accelerator Sigix Broadsword > --- INVENTORY -------- Light Quantum Reactor Matter Drive Advanced Medium Treads Advanced Medium Treads Advanced Medium Treads Experimental Cooling System Advanced Matter Compressor Advanced Target Analyzer Centrium Medium Armor Plating Advanced Point Defense System Long-range Tractor Beam Dimensional Node Initializer Transdimensional Reconstructor Transdimensional Reconstructor High-powered Transdimensional Reconstructor High-powered Transdimensional Reconstructor Subatomic Replicator Fusion Bomb Launcher Sigix Containment Pod [Rating: 221] Favorites ----------- Power Quantum Reactor Engine Light Angular Momentum Engine Power Core Light Nuclear Core Reactor Quantum Reactor Propulsion Light Treads Treads Light Treads Wheel Wheel Hover Unit Improved Antigrav System Flight Unit Cooled Impulse Thruster Utility High-capacity Storage Unit Device Advanced Heat Sink Storage High-capacity Storage Unit Processor Improved Target Analyzer Hackware Hacking Suite Protection Light Armor Plating Artifact Phase Armor Weapon KE Penetrator Energy Gun Plasma Rifle Energy Cannon HERF Cannon Ballistic Gun KE Penetrator Ballistic Cannon Hypercooled Linear Accelerator Launcher Improved Concussive RPG Special Weapon Remote Datajack Impact Weapon Shock Maul Slashing Weapon Sigix Broadsword Build | -11 -10 -10 -9 -9 -9 -8 -8 -7 -7 -6 -6 -6 -6 -6 -6 -6 -5 -5 -5 -5 -4 -4 -4 -3 -3 -2 -1 ------- Run | Yrd Mat Min Mat Sto Gar Mat Gar Fac Gar Fac Gar Ext Cet Arc Hub Gar Fac Upp Upp Zhi Pro Fac Gar Res Qua Res Acc Slots Evolved 18 | . . . 2 . . 2 . 2 . 2 . . . . . . 2 . . . . 2 . 2 . 2 2 Power 1 | . . . . . . . . . . . . . . . . . . . . . . . . . . 1 . Propulsion 7 | . . . . . . . . . . 1 . . . . . . . . . . . 1 . 2 . 1 2 Utility 2 | . . . 1 . . . . 1 . . . . . . . . . . . . . . . . . . . Weapon 8 | . . . 1 . . 2 . 1 . 1 . . . . . . 2 . . . . 1 . . . . . Parts Attached 378 | 5 17 . 21 1 16 17 4 3 7 1 10 10 7 6 . 9 12 2 1 1 9 12 16 32 88 48 23 Power 29 | . 2 . 2 . 2 . . 1 1 . 1 . 1 . . . 1 . . . . 2 1 2 7 3 3 Engine 7 | . 2 . 2 . 1 . . . . . 1 . . . . . 1 . . . . . . . . . . Core 5 | . . . . . 1 . . 1 1 . . . . . . . . . . . . 1 . . 1 . . Reactor 17 | . . . . . . . . . . . . . 1 . . . . . . . . 1 1 2 6 3 3 Propulsion 98 | 2 6 . 5 . 4 5 3 1 3 . 2 5 1 . . 1 1 . . . 3 3 7 4 26 10 6 Treads 83 | 1 2 . 5 . 4 5 3 1 3 . 2 5 1 . . 1 1 . . . 3 3 7 4 17 10 5 Leg . | . . . . . . . . . . . . . . . . . . . . . . . . . . . . Wheel 6 | 1 4 . . . . . . . . . . . . . . . . . . . . . . . 1 . . Hover 7 | . . . . . . . . . . . . . . . . . . . . . . . . . 7 . . Flight 2 | . . . . . . . . . . . . . . . . . . . . . . . . . 1 . 1 Utility 109 | 1 4 . 5 . 3 3 1 1 2 . 2 . . 5 . 3 2 2 . 1 1 1 . 7 38 22 5 Device 58 | 1 1 . 2 . . . . 1 1 . . . . 2 . 3 2 2 . 1 1 1 . 3 23 12 2 Storage 14 | . 1 . 1 . . 1 . . . . . . . 1 . . . . . . . . . 2 3 4 1 Processor 23 | . 1 . . . 1 2 1 . . . 2 . . . . . . . . . . . . 2 7 6 1 Hackware 5 | . 1 . . . . . . . . . . . . 2 . . . . . . . . . . 1 . 1 Protection 7 | . . . 2 . 2 . . . 1 . . . . . . . . . . . . . . . 2 . . Artifact 2 | . . . . . . . . . . . . . . . . . . . . . . . . . 2 . . Weapon 142 | 2 5 . 9 1 7 9 . . 1 1 5 5 5 1 . 5 8 . 1 . 5 6 8 19 17 13 9 Energy Gun 10 | 2 1 . . . . . . . . . . . 1 . . . . . . . . 3 . . 1 . 2 Energy Cannon 6 | . . . . . . . . . . . . . . . . . . . . . . 1 . . . 1 4 Ballistic Gun 98 | . 4 . 8 . 7 9 . . 1 1 5 3 4 . . 4 8 . 1 . 5 2 7 15 6 7 1 Ballistic Cannon 15 | . . . . . . . . . . . . 2 . . . . . . . . . . . . 7 4 2 Launcher 2 | . . . . . . . . . . . . . . . . . . . . . . . 1 . . 1 . Special Weapon 4 | . . . . . . . . . . . . . . 1 . . . . . . . . . 1 2 . . Impact Weapon 5 | . . . 1 1 . . . . . . . . . . . . . . . . . . . 3 . . . Slashing Weapon 2 | . . . . . . . . . . . . . . . . 1 . . . . . . . . 1 . . Piercing Weapon . | . . . . . . . . . . . . . . . . . . . . . . . . . . . . Special Melee Weapon . | . . . . . . . . . . . . . . . . . . . . . . . . . . . . Unidentified Prototypes 41 | . . . 2 . . 1 . . . . . . 3 2 . . 2 . . 2 . . . 8 9 10 2 Corrupted Parts 2 | . . . . . . . . . . . . . . . . . . . . . . . . . 1 1 . System Corruption 18 | . . . . . . . . . . . . . . . . . . . . . . . . . 8 10 . Parts Lost 159 | . 1 . 1 . 6 4 1 . 9 . 3 2 . . . 3 10 1 1 . 12 8 16 5 38 18 20 Power 17 | . . . 1 . . 1 1 . 1 . . . . . . . 2 . . . . 1 2 . 2 3 3 Propulsion 40 | . . . . . 2 1 . . 2 . . 1 . . . . 1 1 . . 1 2 4 3 15 2 5 Utility 15 | . . . . . 1 . . . 1 . . . . . . . 1 . . . . 1 1 . 6 2 2 Weapon 87 | . 1 . . . 3 2 . . 5 . 3 1 . . . 3 6 . 1 . 11 4 9 2 15 11 10 Highest Loss Streak 18 | . 1 . 1 . 5 3 1 . 9 . 2 1 . . . 2 4 1 1 . 4 7 4 1 18 5 9 To Critical Strikes 6 | . . . . . . . . . . . . . . . . 2 . . . . . . 1 . 2 . 1 Average Backups 14 | 2 5 8 11 15 14 17 19 19 19 13 12 16 18 6 17 16 16 13 14 15 14 13 15 18 12 17 15 Power . | 1 . . . . . . . . . . . . . . . . . . . . . . 1 . . . . Propulsion 2 | . 1 . 1 3 2 5 5 4 4 2 2 2 4 2 3 3 3 2 2 2 2 1 1 2 . 2 3 Utility 6 | . 1 4 4 4 3 4 5 7 9 9 8 8 8 2 7 6 7 7 7 7 8 9 10 10 5 6 6 Weapon 3 | . 2 3 6 8 7 6 7 6 4 1 1 3 5 1 6 5 5 3 4 5 2 . . 3 1 1 . Tool/Special . | . . . . . . . . . . . . . . . . . . . . . . . . . . . . Unused Backups 31 | . 1 . 2 . . 1 6 . . . . . 2 . . . 2 1 . . . . . 1 3 1 11 Power . | . . . . . . . . . . . . . . . . . . . . . . . . . . . . Propulsion 10 | . . . . . . . 4 . . . . . . . . . . . . . . . . . . . 6 Utility 15 | . . . 1 . . 1 2 . . . . . 1 . . . 1 1 . . . . . 1 3 1 3 Weapon 4 | . 1 . 1 . . . . . . . . . 1 . . . 1 . . . . . . . . . . Tool/Special 2 | . . . . . . . . . . . . . . . . . . . . . . . . . . . 2 Average Slot Usage (%) 84 | . 92 100 98 100 99 99 91 88 98 76 92 97 94 91 93 92 93 92 87 87 81 53 72 93 67 80 44 Engine 2 | . 10 14 10 11 9 2 1 . . . 3 6 4 . . . . 5 5 5 5 2 . . . . . Reactor 2 | . . . . . . . . . . . . . 1 6 6 6 4 . . . . 2 4 . 3 7 4 Treads 16 | . 13 14 19 22 21 18 18 15 15 20 19 19 14 13 13 13 10 9 5 5 5 12 15 27 16 18 15 Device 4 | . 19 . 3 11 1 . . 5 6 . . . . . . 5 4 5 5 4 5 4 5 3 6 3 2 Storage 5 | . 2 14 11 11 11 9 9 7 7 6 6 6 6 1 6 6 5 5 5 5 5 5 5 4 2 4 4 Processor 10 | . . . . . 4 17 18 15 15 13 19 20 20 20 20 14 11 11 11 11 11 10 10 9 4 8 5 Hackware 1 | . 2 14 11 11 6 . . . . . . . . 2 . . . . . . . . . . . . . Ballistic Gun 31 | . 20 28 32 27 29 44 42 43 43 36 40 40 45 40 46 44 51 52 51 52 44 8 22 35 10 18 4 Ballistic Cannon 2 | . . . . . . . . . . . . . . . . . . . . . . . . . 9 13 4 Impact Weapon 1 | . . . . 5 3 . 2 . 1 . 2 2 . . . . . . . . . . . 5 1 . . Peak Build Rating 221 | 5 10 11 19 19 19 30 33 40 41 37 60 61 75 75 75 86 92 89 88 89 89 91 97 123 190 221 162 Average Rating 81 | 4 7 10 14 18 15 22 30 36 39 35 50 53 65 67 75 82 88 88 87 87 78 66 79 100 115 205 140 On Entrance 58 | . 5 9 11 18 18 16 28 33 40 24 37 53 53 75 75 75 80 88 88 87 89 60 91 53 121 188 129 Avg Prop Armor Cover (%) 11 | 25 14 12 8 . . . . . . . . . . . . . . . . . . . . . 5 7 18 Naked Turns 83 | . . . . . . . . . . . . . . . . . . . . . . . . . 83 . . Heaviest Build 207 | 3 16 16 38 38 38 58 60 64 71 60 80 92 84 84 84 93 98 95 95 84 94 85 90 111 174 207 154 Greatest Support 330 | 16 16 10 40 40 40 40 40 40 40 60 80 80 100 100 100 100 100 100 80 80 108 135 136 177 180 280 330 Greatest Overweight (x) 4 | . 1 1 1 . 1 1 1 1 2 . 1 1 1 . . . 1 1 1 1 1 . 1 . 4 . 1 Average Overweight (x) . | . . 1 . . . . 1 1 1 . . . . . . . . . 1 1 . . . . . . . Largest Inventory Capacity 25 | 5 10 10 15 15 15 20 20 20 20 20 20 20 20 20 20 20 20 20 20 20 20 20 20 20 20 20 25 Average Capacity 18 | 5 5 10 12 15 15 19 20 20 20 20 20 20 20 9 20 20 20 20 20 20 20 20 20 20 15 20 24 Most Carried 22 | 5 7 9 15 15 15 20 20 20 20 15 14 20 20 20 19 20 20 17 17 19 19 16 20 20 20 20 22 Average Carried 15 | 2 5 8 11 15 14 17 19 19 19 13 12 16 19 8 19 18 18 15 16 18 16 15 16 19 13 19 17 Final Capacity 25 | 5 10 10 15 15 15 20 20 20 20 20 20 20 20 20 20 20 20 20 20 20 20 20 20 20 20 20 25 Final Carried 20 | 5 6 9 15 15 15 20 20 20 16 13 12 20 20 19 19 20 13 16 17 19 16 16 20 20 20 17 18 Class Distribution -------------------- 48% | Scavenger-Executioner 12% | Scavenger-Gunner 11% | Scavenger-Mutant 10% | Commander-Executioner 5% | Scavenger-Tank 4% | Mutant Dominant Class ---------------- Scavenger-Mutant | -10/Materials Scavenger-Mutant | -10/Mines Scavenger-Tank | -9/Materials Scavenger-Mutant | -9/Storage Scavenger-Mutant | -9/Garrison Scavenger-Gunner | -8/Materials Commander-Gunner | -8/Garrison Commander-Executioner | -7/Factory Scavenger-Executioner | -7/Garrison Executioner | -6/Factory Scavenger-Executioner | -6/Garrison Commander-Executioner | -6/Extension Commander-Executioner | -6/Cetus Commander-Executioner | -6/Archives Commander-Executioner | -6/Hub_04(d) Commander-Executioner | -6/Garrison Scavenger-Executioner | -5/Factory Scavenger-Executioner | -5/Upper Caves Scavenger-Executioner | -5/Upper Caves Scavenger-Executioner | -5/Zhirov Scavenger-Executioner | -4/Proximity Caves Scavenger-Gunner | -4/Factory Scavenger-Executioner | -4/Garrison Scavenger-Executioner | -3/Research Scavenger-Executioner | -3/Quarantine Scavenger-Executioner | -2/Research Scavenger-Tank | -1/Access Resources | -11 -10 -10 -9 -9 -9 -8 -8 -7 -7 -6 -6 -6 -6 -6 -6 -6 -5 -5 -5 -5 -4 -4 -4 -3 -3 -2 -1 ----------- Run | Yrd Mat Min Mat Sto Gar Mat Gar Fac Gar Fac Gar Ext Cet Arc Hub Gar Fac Upp Upp Zhi Pro Fac Gar Res Qua Res Acc Matter Collected 29033 | 250 412 192 789 10 810 817 916 187 616 . 1077 731 295 202 . 653 2167 229 145 . 1066 418 1183 2149 4449 8011 1259 Remotely 8048 | . . . . . . . . . . . . . . . . . 1282 . . . 280 . . 567 1211 4708 . Salvage Created 31650 | 78 682 26 1338 . 984 1774 1393 187 916 . 1088 944 317 78 . 499 2910 157 181 . 1199 1095 2033 2238 3735 5913 1885 Parts 1505 | 4 51 4 83 . 69 110 66 5 37 . 73 42 17 5 . 23 147 12 10 . 41 43 100 71 182 246 64 Haulers Intercepted 19 | . 2 . 2 . . 3 . . . . . . . . . . . . . . . 2 . 4 2 3 1 Recyclers Shooed 16 | . . . 5 . . 2 . . . . . . . . . . 3 . . . . . . . 1 2 3 Parts Field Recycled . | . . . . . . . . . . . . . . . . . . . . . . . . . . . . Retrieved Matter . | . . . . . . . . . . . . . . . . . . . . . . . . . . . . Parts Self-Destructed 85 | . . . . . . . . . . . . . . . . . . 11 9 . 65 . . . . . . Prevented 2 | . . . . . . . . . . . . . . . . . . . . . 2 . . . . . . Parts Restored . | . . . . . . . . . . . . . . . . . . . . . . . . . . . . Kills | -11 -10 -10 -9 -9 -9 -8 -8 -7 -7 -6 -6 -6 -6 -6 -6 -6 -5 -5 -5 -5 -4 -4 -4 -3 -3 -2 -1 ------- Run | Yrd Mat Min Mat Sto Gar Mat Gar Fac Gar Fac Gar Ext Cet Arc Hub Gar Fac Upp Upp Zhi Pro Fac Gar Res Qua Res Acc Combat Hostiles Destroyed 501 | . 14 2 30 . 28 29 25 4 20 . 26 13 4 . . 9 41 5 5 . 16 12 32 22 48 85 31 Melee 14 | . . . . . . . . . . . . . . . . . . . . . . . . . 7 3 4 Guns 425 | . 14 2 30 . 28 29 25 4 20 . 26 13 4 . . 9 41 5 5 . 16 11 32 22 29 49 11 Cannons 46 | . . . . . . . . . . . . . . . . . . . . . . . . . 5 30 11 AOE 10 | . . . . . . . . . . . . . . . . . . . . . . . . . 2 3 5 Classes Destroyed 24 | 2 7 . 2 . 2 1 2 1 1 . 2 . . . . . 2 . . . . . . 1 . 1 . Worker 25 | . 2 . 1 . . 2 . . . . . . . . . . 9 . . . . . . 4 4 2 1 Builder 19 | . 1 . . . . 2 . . . . . . . . . . 5 . . . . . . . 1 7 3 Tunneler 2 | 1 . . . . . . . . . . . . . . . . 1 . . . . . . . . . . Hauler 19 | . 2 . 2 . . 3 . . . . . . . . . . . . . . . 2 . 4 2 3 1 Recycler 20 | 1 . . 5 . . 3 . . . . . 1 . . . . 1 . . . . 2 . 1 2 3 1 Mechanic 4 | . . . . . . 1 . . . . . . . . . . 1 . . . . . . . . 2 . Operator 6 | . 2 . . . . 1 . . . . . . . 2 . 1 . . . . . . . . . . . Watcher 13 | . 2 . 2 . . 4 . . . . . 1 . . . . 3 . . . . . . . 1 . . Swarmer 93 | . 3 2 19 . 13 10 . . . . 7 . . . . 1 5 4 3 . . 5 3 . . 13 5 Cutter 10 | . . . . . . . . . . . 4 . . . . . . . . . . . 6 . . . . Saboteur 1 | . . . . . . . . . . . . . . . . . . . . . . . . . . 1 . Grunt 181 | . 11 . 6 . 6 10 11 2 6 . 2 9 . . . 2 25 . . . 7 4 17 8 13 25 17 Brawler 15 | . . . . . . . 2 . 1 . . . . . . 1 2 . . . 1 . . 3 2 3 . Duelist 14 | . . . 1 . . . 1 . 1 . . . . . . 1 1 . . . 4 . . . 1 3 1 Protector 3 | . . . . . . . . . . . . . . . . . 1 . . . 1 . . . 1 . . Sentry 53 | . . . 4 . 4 7 8 1 5 . 3 1 . . . 1 1 . . . 2 1 5 1 3 3 3 Demolisher 1 | . . . . . . . . 1 . . . . . . . . . . . . . . . . . . . Specialist 7 | . . . . . . . 1 . . . . . . . . . . . . . . . . . 3 3 . Hunter 27 | . . . . . 2 2 . . . . . . . . . . 4 . 2 . . . . . 5 12 . Programmer 57 | . . . . . 3 . 2 . . . 9 2 . . . 3 . 1 . . . 2 . . 11 20 4 Heavy 4 | . . . . . . . . . . . . . . . . . 1 . . . . . . . . 2 1 Behemoth 5 | . . . . . . . . . . . 1 1 . . . . 1 . . . 1 . 1 . . . . Cetus Guard 4 | . . . . . . . . . . . . . 4 . . . . . . . . . . . . . . Quarantine Guard 8 | . . . . . . . . . . . . . . . . . . . . . . . . . 8 . . Lightning 1 | . . . . . . . . . . . . . . . . . . . . . . . . . 1 . . Striker 10 | . . . . . . . . . . . . . . . . . . . . . . . . 10 . . . Assembled 7 | . . . . . . . . . 7 . . . . . . . . . . . . . . . . . . Thug 1 | . . . . . . . . . . . . . 1 . . . . . . . . . . . . . . Best Kill Streak 18 | 1 5 2 11 . 4 15 6 2 5 . 7 3 2 1 . 5 18 4 3 . 5 11 4 5 13 9 12 Combat Bots Only 11 | . 4 2 8 . 4 5 6 2 5 . 7 3 2 . . 5 11 4 3 . 5 9 4 5 11 5 8 Max Kills in Single Turn 4 | 1 1 1 2 . 2 3 2 1 3 . 2 2 2 1 . 2 4 3 3 . 2 1 3 2 3 4 3 Gunslinging 2 | . . . 1 . 1 1 1 . 2 . 1 1 1 . . . 2 2 1 . 1 . 1 1 1 1 . Exploded 3 | . . . . . . . . . . . . . . . . . . . . . . . . . 2 2 3 Melee 1 | . . . . . . . . . . . . . . . . . . . . . . . . . 1 1 1 Uniques/NPCs Destroyed . | . . . . . . . . . . . . . . . . . . . . . . . . . . . . Combat | -11 -10 -10 -9 -9 -9 -8 -8 -7 -7 -6 -6 -6 -6 -6 -6 -6 -5 -5 -5 -5 -4 -4 -4 -3 -3 -2 -1 -------- Run | Yrd Mat Min Mat Sto Gar Mat Gar Fac Gar Fac Gar Ext Cet Arc Hub Gar Fac Upp Upp Zhi Pro Fac Gar Res Qua Res Acc Hostile Shots Fired 3341 | . 68 11 89 . 224 93 43 14 156 . 120 36 6 . . 64 140 19 28 . 89 125 219 107 556 613 521 Missed 908 | . 13 5 27 . 58 31 13 3 47 . 40 8 2 . . 16 40 8 10 . 18 27 50 32 191 148 121 Hits 2433 | . 55 6 62 . 166 62 30 11 109 . 80 28 4 . . 48 100 11 18 . 71 98 169 75 365 465 400 Melee 71 | . . . . . . . . . 13 . 6 . . . . . 1 . . . 11 . 7 14 8 4 7 Projectile 2362 | . 55 6 62 . 166 62 30 11 96 . 74 28 4 . . 48 99 11 18 . 60 98 162 61 357 461 393 AOE 3 | . . . . . . . . 3 . . . . . . . . . . . . . . . . . . . Critical Strikes 116 | . 1 . . . 3 3 5 . . . 5 2 1 . . 2 6 1 . . 8 5 10 5 22 20 17 Part Disruptions 9 | . . . . . . . . . . . 1 . . . . . . . . . . 1 . . 2 3 2 Damage Taken 43810 | . 584 65 522 . 1809 897 549 171 1247 . 720 464 69 . . 485 1854 148 237 . 1715 1680 2379 2006 9261 8704 8244 Core 3872 | . 93 37 95 . 244 156 119 19 153 . 75 20 . . . 68 97 9 26 . 209 236 97 210 955 297 657 Absorbed by Shields 6206 | . . . 10 . 185 . 47 36 343 . 214 93 66 . . 376 . 39 35 . 54 100 1317 . . 2543 748 Reduced by Siege Mode 472 | . . . . . . . . . . . . . . . . . . . . . . . 86 . . 284 102 Redirected to Core 99 | . . . . . . . . . . . . . . . . . . . . . . . . . 99 . . Redirected to Shielding 171 | . . . 24 . 41 . . . 106 . . . . . . . . . . . . . . . . . . Regen/Repaired (Parts) 3862 | . 130 . 63 . . . . . . . . 141 . . . . 18 . . . . . . 307 1531 1672 . Core Remaining (%) 56 | 100 . 48 . . 15 . 50 . 75 . . . . . . 80 . . . . 65 . 71 . 8 64 45 Volleys Fired 1124 | 8 77 3 69 . 87 76 47 9 36 . 44 21 9 13 . 19 58 5 4 . 38 46 70 43 89 158 95 Largest 9 | 2 2 2 3 . 3 5 5 6 6 . 7 7 7 6 . 7 9 9 9 . 9 4 6 9 9 8 4 Hottest 349 | 80 85 40 69 . 69 115 120 140 140 . 184 182 240 152 . 204 246 237 237 . 245 261 349 315 313 307 231 Shots Fired 5146 | 16 146 6 207 . 248 380 227 52 216 . 236 135 58 23 . 133 514 45 36 . 278 95 308 281 400 883 223 Gun 4672 | 16 146 6 207 . 248 380 227 52 216 . 236 135 58 12 . 133 514 45 36 . 278 95 303 281 331 588 129 Cannon 454 | . . . . . . . . . . . . . . . . . . . . . . . 5 . 67 293 89 Launcher 7 | . . . . . . . . . . . . . . . . . . . . . . . . . . 2 5 Special 13 | . . . . . . . . . . . . . . 11 . . . . . . . . . . 2 . . Kinetic 4939 | . 109 6 207 . 248 380 227 52 216 . 236 135 57 12 . 133 514 45 36 . 278 77 239 281 394 881 176 Thermal 178 | 16 37 . . . . . . . . . . . 1 . . . . . . . . 18 64 . . . 42 Explosive 7 | . . . . . . . . . . . . . . . . . . . . . . . . . . 2 5 Electromagnetic 9 | . . . . . . . . . . . . . . . . . . . . . . . 5 . 4 . . Robot Hit Streak 44 | 4 7 2 9 . 28 27 24 15 31 . 14 12 12 3 . 11 17 7 9 . 15 15 23 19 44 20 22 Robot Miss Streak 9 | 2 4 1 6 . 2 4 4 3 3 . 6 3 4 2 . 4 8 7 3 . 5 4 8 6 5 9 3 Penetration Max 2 | . . . . . . . . . . . . 1 . . . 1 1 . . . 1 . 1 1 2 1 2 Secondary Targets 118 | . 3 1 6 . 7 5 7 2 8 . 4 3 1 . . 3 18 2 2 . 4 3 9 6 14 10 . Max Gunslinging Chain 3 | . 1 1 1 . 1 1 1 1 2 . 1 1 1 . . 1 3 2 1 . 2 1 2 2 1 2 . Shots Hit Robots 3188 | 10 78 3 122 . 180 245 149 38 152 . 131 97 38 16 . 81 281 19 21 . 159 78 202 162 317 460 149 Core Hits 1424 | 3 42 2 57 . 60 106 58 9 55 . 52 37 18 6 . 26 156 8 12 . 69 33 87 61 123 263 81 Critical Kills 119 | . 1 . . . 1 8 7 1 7 . 6 4 2 . . 4 15 2 . . 3 3 10 11 11 21 2 Critical Parts Destroyed 158 | . . . 2 . 2 8 4 2 7 . 2 5 2 . . 7 17 2 2 . 8 1 11 17 32 23 4 Critical Strikes 344 | . 1 . 2 . 3 17 13 3 14 . 9 11 5 . . 12 32 4 2 . 13 6 24 31 55 71 16 Burn 5 | . . . . . . . . . . . . . . . . . . . . . . 1 2 . . . 2 Destroy 284 | . 1 . 2 . 2 17 13 3 14 . 9 11 5 . . 12 32 4 2 . 13 4 22 28 38 46 6 Blast 34 | . . . . . . . . . . . . . . . . . . . . . . . . . 1 25 8 Smash 12 | . . . . . 1 . . . . . . . . . . . . . . . . . . 3 8 . . Sever 9 | . . . . . . . . . . . . . . . . . . . . . . 1 . . 8 . . Melee Attacks 210 | . . . 7 1 33 . 13 . 13 . 4 . . . . 5 . . . . . 14 1 11 83 25 . Impact 110 | . . . 7 1 33 . 13 . 13 . 4 . . . . . . . . . . . . 11 28 . . Slashing 100 | . . . . . . . . . . . . . . . . 5 . . . . . 14 1 . 55 25 . Piercing . | . . . . . . . . . . . . . . . . . . . . . . . . . . . . Sneak Attacks 12 | . . . . . . . . . . . . . . . . . . . . . . 3 . 4 4 1 . Combat Hostiles 1 | . . . . . . . . . . . . . . . . . . . . . . . . . 1 . . Follow-up Attacks . | . . . . . . . . . . . . . . . . . . . . . . . . . . . . Damage Inflicted 74225 | 109 906 50 1567 . 1918 2649 2338 542 1878 . 2365 1829 716 134 . 1786 5873 334 308 . 2720 1853 4864 4473 12365 15953 6695 Guns 54943 | 109 906 50 1563 . 1881 2376 2158 539 1878 . 2365 1829 716 134 . 1786 5789 334 308 . 2720 1291 4759 3885 6347 8670 2550 Cannons 10002 | . . . . . . . . . . . . . . . . . . . . . . . 105 . 1046 6037 2814 Explosions 2423 | . . . . . . 270 . . . . . . . . . . 76 . . . . . . . 470 381 1226 Melee 6696 | . . . . . 37 . 180 . . . . . . . . . . . . . . 542 . 570 4502 865 . Ramming 161 | . . . 4 . . 3 . 3 . . . . . . . . 8 . . . . 20 . 18 . . 105 Kinetic 62405 | . 673 50 1563 . 1881 2376 2158 539 1878 . 2365 1829 716 134 . 1786 5789 334 308 . 2720 1008 3492 3885 7322 14707 4892 Thermal 2364 | 109 233 . . . . . . . . . . . . . . . . . . . . 283 1267 . . . 472 Explosive 2347 | . . . . . . 270 . . . . . . . . . . . . . . . . . . 470 381 1226 Electromagnetic 252 | . . . . . . . . . . . . . . . . . 76 . . . . . 105 . 71 . . Impact 1812 | . . . . . 37 . 180 . . . . . . . . . . . . . . . . 570 1025 . . Slashing 4884 | . . . . . . . . . . . . . . . . . . . . . . 542 . . 3477 865 . Piercing . | . . . . . . . . . . . . . . . . . . . . . . . . . . . . Highest Corruption 33 | . . . 2 2 7 . 1 . . . 4 4 4 4 . . . . . . . 2 2 . 33 26 16 Average Corruption 6 | . . . 2 2 3 . 1 . . . 3 4 4 3 . . . . . . . 1 2 . 14 12 5 Corruption Purged 4 | . . . . . . . . . . . . . . 4 . . . . . . . . . . . . . Corruption Blocked . | . . . . . . . . . . . . . . . . . . . . . . . . . . . . Effects 319 | . . . 6 2 27 . 3 . . . 12 29 9 4 . . . . . . . 5 19 . 81 110 12 Message Errors 59 | . . . 1 . 11 . 1 . . . 8 5 1 1 . . . . . . . . 3 . 12 15 1 Matter Fused 77 | . . . 1 . 6 . 1 . . . 2 8 2 2 . . . . . . . . 3 . 22 27 3 Heat Flow Errors 39 | . . . 2 . 5 . . . . . . 2 1 1 . . . . . . . . 2 . 10 15 1 Energy Discharges 34 | . . . . . 3 . . . . . 1 6 1 . . . . . . . . 1 3 . 10 8 1 Parts Rejected 7 | . . . . . . . . . . . . . . . . . . . . . . 1 . . 1 3 2 Parts Fused 5 | . . . . . . . . . . . . . 1 . . . . . . . . . 2 . 1 1 . Data Loss (minor) 28 | . . . 1 1 . . 1 . . . . 3 2 . . . . . . . . . 1 . 10 7 2 Data Loss (major) 13 | . . . 1 1 2 . . . . . . 2 . . . . . . . . . . 1 . 5 1 . Misfires 13 | . . . . . . . . . . . . 2 1 . . . . . . . . 1 1 . 3 5 . Alerts 6 | . . . . . . . . . . . . 1 . . . . . . . . . 1 . . 2 1 1 Misdirections 3 | . . . . . . . . . . . . . . . . . . . . . . . . . 1 2 . Weapon Failures 35 | . . . . . . . . . . . 1 . . . . . . . . . . 1 3 . 4 25 1 Overload Shots 1 | . . . . . . . . . . . . . 1 . . . . . . . . . . . . . . Overflow Damage 1899 | . . . . . 37 7 8 . . . . 8 . . . . . . . . . 66 . 467 891 216 199 Projectiles 332 | . . . . . . . . . . . . . . . . . . . . . . . . . . 165 167 Explosions 69 | . . . . . . 7 . . . . . 8 . . . . . . . . . . . . 23 . 31 Melee 1498 | . . . . . 37 . 8 . . . . . . . . . . . . . . 66 . 467 868 51 1 Knockbacks 83 | . . . . . . . . . . . . . . . . . . . . . . . . . 13 51 19 Impact 4 | . . . . . . . . . . . . . . . . . . . . . . . . . 4 . . Kinetic 71 | . . . . . . . . . . . . . . . . . . . . . . . . . 7 46 18 Secondary 8 | . . . . . . . . . . . . . . . . . . . . . . . . . 2 5 1 Self-Inflicted Damage 296 | . . . . . . 64 . . . . . 49 . . . . . . . . . . . . 91 92 . Shots 4 | . . . . . . 1 . . . . . 1 . . . . . . . . . . . . 1 1 . Rammed 15 | . . . 1 . . 2 . 1 . . . . . . . . 2 . . . . 3 . 1 . . 5 Targets Rammed 21 | . . . 1 . . 2 . 1 . . . . . . . . 2 . . . . 3 . 2 . . 10 Kicked . | . . . . . . . . . . . . . . . . . . . . . . . . . . . . Crushed 6 | . . . . . . . . . . . . . . . . . . . . . . . . 1 . . 5 Highest Temperature 489 | 12 306 9 304 . 280 423 447 258 365 . 322 374 395 239 . 356 425 276 243 . 326 119 426 360 211 489 311 Average Temperature 104 | 5 84 9 47 . 62 87 151 94 173 . 142 124 147 88 . 149 133 117 110 . 116 34 87 119 52 116 96 Received Heat Transfer 5652 | . 270 9 65 . 236 306 234 30 148 . 87 286 . . . 79 517 . . . 315 317 684 351 405 676 637 Effects 35 | . 1 . . . . 1 4 . 1 . 2 1 . . . . 5 . . . . . 1 3 . 14 2 Shutdowns 7 | . . . . . . . . . . . . . . . . . . . . . . . 1 . . 6 . Energy Bleed 10 | . . . . . . . 1 . . . 2 1 . . . . . . . . . . . . . 4 2 Interference 8 | . 1 . . . . . . . . . . . . . . . 5 . . . . . . 2 . . . Matter Decay 3 | . . . . . . . . . . . . . . . . . . . . . . . . . . 3 . Short Circuit 3 | . . . . . . . 2 . . . . . . . . . . . . . . . . 1 . . . Damage (minor) 4 | . . . . . . 1 1 . 1 . . . . . . . . . . . . . . . . 1 . Siege Activations 12 | . . . . . . . . . . . . . . . . . . . . . 2 . 1 . . 7 2 Total Turns 239 | . . . . . . . . . . . . . . . . . . . . . 26 . 37 . . 136 40 Longest Duration 46 | . . . . . . . . . . . . . . . . . . . . . 20 . 37 . . 46 33 Martial Activations . | . . . . . . . . . . . . . . . . . . . . . . . . . . . . Shielding Activations . | . . . . . . . . . . . . . . . . . . . . . . . . . . . . Robots Disrupted 2 | . . . . . . . . . . . . . . . . . 1 . . . . . . . 1 . . Combat Hostiles 1 | . . . . . . . . . . . . . . . . . . . . . . . . . 1 . . Robots Corrupted 11 | . . . . . 1 . 1 . . . . . . . . . . . . . . . . 3 6 . . Combat Hostiles 3 | . . . . . . . . . . . . . . . . . . . . . . . . . 3 . . Parts Fried 15 | . . . . . 1 . . . . . . . . . . . . . 1 . . . . 3 10 . . Impact Corruptions 34 | . . . . . 1 . 1 . . . . . . . . . . . . . . . . 9 21 1 1 Robots Melted 1 | . . . . . . . . . . . . . . . . . . . . . . 1 . . . . . Combat Hostiles 1 | . . . . . . . . . . . . . . . . . . . . . . 1 . . . . . Parts Melted 9 | 1 . . . . . . . . . . . 1 . . . . . . . . . 2 3 . 2 . . Heat Transferred 4758 | 250 547 . . . . . . . . . . . . . . . . . . . . 650 2238 . . . 1073 Parts Sabotaged 1 | . . . . . . . . . . . . . . . . . . . . . . . . . . 1 . Parts Stolen . | . . . . . . . . . . . . . . . . . . . . . . . . . . . . Parts Stripped . | . . . . . . . . . . . . . . . . . . . . . . . . . . . . Power Chain Reactions . | . . . . . . . . . . . . . . . . . . . . . . . . . . . . Alert | -11 -10 -10 -9 -9 -9 -8 -8 -7 -7 -6 -6 -6 -6 -6 -6 -6 -5 -5 -5 -5 -4 -4 -4 -3 -3 -2 -1 ------- Run | Yrd Mat Min Mat Sto Gar Mat Gar Fac Gar Fac Gar Ext Cet Arc Hub Gar Fac Upp Upp Zhi Pro Fac Gar Res Qua Res Acc Maximum Alert Level 5 | . 1 . 2 1 4 3 4 3 3 2 3 3 2 1 . 3 5 . . . . . 3 2 4 5 5 Low Security (%) 11 | 100 27 100 64 . 3 . . . . . . . . 30 100 14 . . . . . 100 23 . . . . Level 1 13 | . 72 . 13 100 16 10 4 . . 49 32 . . 69 . 3 . . . . . . 9 40 7 . . Level 2 30 | . . . 22 . 37 79 21 66 29 50 20 75 100 . . 4 22 . . . . . 21 59 33 10 . Level 3 26 | . . . . . 30 10 32 33 70 . 46 24 . . . 77 37 . . . . . 45 . 57 15 . Level 4 6 | . . . . . 12 . 41 . . . . . . . . . 12 . . . . . . . 1 16 15 Level 5 10 | . . . . . . . . . . . . . . . . . 28 . . . . . . . . 56 75 High Security . | . . . . . . . . . . . . . . . . . . . . . . . . . . . 9 Max Security . | . . . . . . . . . . . . . . . . . . . . . . . . . . . . Peak Influence 2734 | 5 314 137 533 259 1144 746 1423 746 963 437 1041 832 631 384 38 1076 1997 . . . . 121 958 570 1140 2734 2251 Initial 1628 | . 3 87 . 224 168 557 285 746 453 437 256 546 432 222 38 5 564 . . . . 32 25 522 319 641 1628 Average 746 | 1 204 43 225 237 669 517 947 681 754 402 657 638 533 252 24 807 1103 . . . . 51 563 410 709 1629 1893 Influence Increases 20212 | 10 648 50 944 55 1076 898 1178 152 531 . 815 758 389 254 . 1181 2155 110 150 . 647 335 1083 732 1987 2931 1143 Destroy 0b10 Robot/C 11080 | . 280 40 620 . 600 580 600 80 260 . 520 380 160 80 . 520 980 100 100 . 520 240 660 440 1000 1700 620 Destroy 0b10 Robot/NC 585 | 10 45 . 50 . 5 80 10 . . . . 10 10 10 . . 115 . . . 5 20 . 45 55 85 30 Destroy Leader 1786 | . 78 10 128 . 30 154 10 30 . . 40 52 . . . 50 208 10 20 . 50 44 30 98 276 356 112 Allied During Kill 1707 | . . . 3 . 11 . 134 25 4 . . 250 170 87 . 570 375 . . . 57 . . . 21 . . Successful Hack 253 | . 49 . 30 10 14 12 12 2 . . . . . . . 10 10 . . . . 12 21 12 43 16 . Select Force Hacks 150 | . 60 . 30 30 . . . . . . . . . . . . . . . . . . . . 30 . . Disable Machine 795 | . 45 . . 15 . 30 . . . . . 30 30 75 . . 135 . . . . 15 . 75 210 90 45 Anti-Garrison Action 1550 | . . . . . 300 . 350 . 250 . 250 . . . . . 150 . . . . . 250 . . . . Destroy Structure 1331 | . 16 . 8 . 71 42 32 . 2 . 5 21 4 2 . 31 152 . . . . 4 17 32 142 489 261 Partial Spotted 210 | . . . 15 . 15 . . . . . . . 15 . . . . . . . . . . . 150 15 . Lose Combat Pursuer 765 | . 75 . 60 . 30 . 30 15 15 . . 15 . . . . 30 . 30 . 15 . 105 30 60 180 75 Influence Decreases 18033 | 5 427 276 411 329 191 1603 194 927 345 467 141 1027 606 699 102 113 1260 1082 568 581 594 352 191 1092 1415 1357 1678 Entered New Map 8190 | . 2 139 . 309 91 587 154 677 195 397 111 495 340 333 72 3 512 730 190 581 . 21 11 406 249 499 1086 Time Decay 7115 | 5 415 137 381 20 . 526 . 130 . 70 . 452 246 326 30 . 478 342 368 . 466 261 . 636 756 678 392 Lost Part 1568 | . 10 . 10 . 60 40 10 . 90 . 30 20 . . . 30 100 10 10 . 108 70 160 50 380 180 200 Lost Ally 710 | . . . 20 . 40 . 30 120 60 . . 60 20 40 . 80 170 . . . 20 . 20 . 30 . . Purge Threat 450 | . . . . . . 450 . . . . . . . . . . . . . . . . . . . . . Squads Dispatched 108 | . 7 . 3 2 . 4 . 2 . . . 1 . . . . 15 . . . 1 2 . 8 15 32 16 Investigation 25 | . 4 . 1 2 . . . 1 . . . 1 . . . . 2 . . . . 1 . 3 5 3 2 Extermination 16 | . . . . . . . . . . . . . . . . . 2 . . . . 1 . . 3 8 2 Reinforcement 30 | . 3 . 1 . . 2 . . . . . . . . . . 5 . . . . . . 5 3 7 4 Assault 23 | . . . 1 . . 1 . . . . . . . . . . 5 . . . 1 . . . 1 10 4 Garrison 14 | . . . . . . 1 . 1 . . . . . . . . 1 . . . . . . . 3 4 4 Intercept . | . . . . . . . . . . . . . . . . . . . . . . . . . . . . Searches Triggered . | . . . . . . . . . . . . . . . . . . . . . . . . . . . . Construction Impeded 6 | . . . . . . . . . . . . . . . . . 3 . . . . . . . 1 2 . Haulers Reinforced 4 | . . . . . . . . . . . . . . . . . 1 . . . . . . 1 1 . 1 Active Scanning Responses . | . . . . . . . . . . . . . . . . . . . . . . . . . . . . Cargo Convoy Interrupts 1 | . . . . . . . . . . . . . . . . . . . . . . . . . . 1 . Stealth | -11 -10 -10 -9 -9 -9 -8 -8 -7 -7 -6 -6 -6 -6 -6 -6 -6 -5 -5 -5 -5 -4 -4 -4 -3 -3 -2 -1 --------- Run | Yrd Mat Min Mat Sto Gar Mat Gar Fac Gar Fac Gar Ext Cet Arc Hub Gar Fac Upp Upp Zhi Pro Fac Gar Res Qua Res Acc Distress Signals 27 | . 1 . 4 . . 3 . . . . . . 2 . . . 1 . . . . . . 7 . 5 4 Communications Jammed . | . . . . . . . . . . . . . . . . . . . . . . . . . . . . Distress Signals . | . . . . . . . . . . . . . . . . . . . . . . . . . . . . Times Spotted 796 | . 24 3 49 . 31 41 29 5 64 . 24 19 11 2 . 25 65 6 6 . 28 12 41 36 69 144 62 Peak Tracking Total 27 | . 3 3 8 . 5 5 5 3 27 . 4 5 5 1 . 9 10 5 3 . 7 8 5 6 6 12 9 Tactical Retreats 49 | . 5 . 3 . 2 . 1 1 7 . . 1 . . . . 2 . 1 . 1 . 7 1 3 10 4 Traps | -11 -10 -10 -9 -9 -9 -8 -8 -7 -7 -6 -6 -6 -6 -6 -6 -6 -5 -5 -5 -5 -4 -4 -4 -3 -3 -2 -1 ------- Run | Yrd Mat Min Mat Sto Gar Mat Gar Fac Gar Fac Gar Ext Cet Arc Hub Gar Fac Upp Upp Zhi Pro Fac Gar Res Qua Res Acc Traps Triggered 32 | . 2 . 1 . 3 . 6 1 3 . 3 . . . . . . . . . . 1 4 2 3 3 . Indirectly . | . . . . . . . . . . . . . . . . . . . . . . . . . . . . Trap Hack Attempts . | . . . . . . . . . . . . . . . . . . . . . . . . . . . . Triggered . | . . . . . . . . . . . . . . . . . . . . . . . . . . . . Disarmed . | . . . . . . . . . . . . . . . . . . . . . . . . . . . . Reprogrammed . | . . . . . . . . . . . . . . . . . . . . . . . . . . . . Reused . | . . . . . . . . . . . . . . . . . . . . . . . . . . . . Traps Extracted . | . . . . . . . . . . . . . . . . . . . . . . . . . . . . Installed . | . . . . . . . . . . . . . . . . . . . . . . . . . . . . Triggered . | . . . . . . . . . . . . . . . . . . . . . . . . . . . . Machines | -11 -10 -10 -9 -9 -9 -8 -8 -7 -7 -6 -6 -6 -6 -6 -6 -6 -5 -5 -5 -5 -4 -4 -4 -3 -3 -2 -1 ---------- Run | Yrd Mat Min Mat Sto Gar Mat Gar Fac Gar Fac Gar Ext Cet Arc Hub Gar Fac Upp Upp Zhi Pro Fac Gar Res Qua Res Acc Machines Disabled 76 | . 4 . . 1 6 2 2 . 1 . 6 2 3 5 . 2 10 . . . . 1 3 5 14 6 3 Max in Single Turn 3 | . 3 . . 1 1 2 1 . 1 . 1 2 1 2 . 1 2 . . . . 1 1 1 1 1 1 Garrison Access 3 | . . . . . . . . . . . . . . . . . 1 . . . . . . 2 . . . Garrison Relay 15 | . . . . . 4 . 2 . 1 . 5 . . . . . . . . . . . 3 . . . . Energy Cycler 1 | . . . . . . . . . . . . 1 . . . . . . . . . . . . . . . Machines Repaired . | . . . . . . . . . . . . . . . . . . . . . . . . . . . . Machines Dismantled 3 | . . . . . . . . . . . . . . . . . . . . . . . . 3 . . . Machines Sabotaged . | . . . . . . . . . . . . . . . . . . . . . . . . . . . . Overloaded Fab Kills . | . . . . . . . . . . . . . . . . . . . . . . . . . . . . Hacking | -11 -10 -10 -9 -9 -9 -8 -8 -7 -7 -6 -6 -6 -6 -6 -6 -6 -5 -5 -5 -5 -4 -4 -4 -3 -3 -2 -1 --------- Run | Yrd Mat Min Mat Sto Gar Mat Gar Fac Gar Fac Gar Ext Cet Arc Hub Gar Fac Upp Upp Zhi Pro Fac Gar Res Qua Res Acc Machines Accessed 87 | . 9 . 9 3 3 7 3 2 1 2 1 1 1 . 2 2 4 1 1 4 . 5 2 6 13 3 2 Terminals 44 | . 6 . 5 1 3 3 3 . 1 . 1 . 1 . 1 2 2 . . . . 2 2 . 8 1 2 Fabricators 2 | . . . . . . . . . . 1 . . . . . . 1 . . . . . . . . . . Repair Stations 11 | . 1 . 2 . . 1 . . . . . 1 . . . . 1 . . . . . . 1 2 2 . Recycling Units 5 | . 2 . . 1 . . . . . . . . . . . . . . . . . 2 . . . . . Scanalyzers 10 | . . . 2 . . 2 . 1 . . . . . . . . . . . . . . . 3 2 . . Garrison Access 9 | . . . . 1 . 1 . 1 . 1 . . . . 1 . . . . . . 1 . 2 1 . . Total Hacks 242 | . 29 . 37 9 6 19 9 6 3 5 1 2 2 . 4 6 10 1 1 17 . 16 5 14 28 7 5 Successful 135 | . 18 . 31 4 2 14 1 5 . 1 1 1 . . 1 2 5 1 1 17 . 9 2 8 9 2 . Failed 105 | . 11 . 5 5 4 5 8 1 3 4 . 1 2 . 3 4 5 . . . . 7 3 5 19 5 5 Catastrophic 17 | . 1 . 1 . . . 3 . 1 3 . . 1 . . . 1 . . . . . . 1 4 . 1 Database Lockouts 2 | . . . 1 . . . . . . . . . . . . . . . . . . . . 1 . . . Manual 104 | . 23 . 16 6 1 2 3 . . 3 . 2 1 . 1 3 1 . . . . 7 1 3 23 5 3 Terminals 121 | . 20 . 19 3 6 9 9 . 3 . 1 . 2 . 2 6 4 . . . . 8 5 . 16 3 5 Fabricators 6 | . . . . . . . . . . 1 . . . . . . 5 . . . . . . . . . . Repair Stations 29 | . 6 . 4 . . 3 . . . . . 2 . . . . 1 . . . . . . 2 7 4 . Recycling Units 11 | . 3 . . 1 . . . . . . . . . . . . . . . . . 7 . . . . . Scanalyzers 39 | . . . 14 . . 6 . 5 . . . . . . . . . . . . . . . 10 4 . . Garrison Access 17 | . . . . 5 . 1 . 1 . 4 . . . . 2 . . . . . . 1 . 2 1 . . Terminal Hacks 44 | . 1 . 5 . 2 5 . . . . 1 . . . . 2 2 1 1 17 . 2 2 . 3 . . Record 6 | . . . . . . . . . . . . . . . . . . . . 5 . . . . 1 . . Part Schematic 4 | . . . . . . . . . . . . . . . . . . . . 4 . . . . . . . Robot Analysis 5 | . 1 . . . . . . . . . . . . . . . . . . 4 . . . . . . . Prototype ID Bank 4 | . . . . . . . . . . . . . . . . . . . . 4 . . . . . . . Open Door 4 | . . . . . . . . . . . . . . . . . . 1 1 . . . 1 . 1 . . Branch Access Points 1 | . . . 1 . . . . . . . . . . . . . . . . . . . . . . . . Emergency Access Points 2 | . . . . . 1 . . . . . . . . . . . . . . . . . 1 . . . . Terminal Index 1 | . . . 1 . . . . . . . . . . . . . . . . . . . . . . . . Unreport Threat 3 | . . . . . . 3 . . . . . . . . . . . . . . . . . . . . . Locate Traps 2 | . . . 1 . . . . . . . . . . . . . . . . . . 1 . . . . . Recall Extermination 1 | . . . . . . . . . . . . . . . . . 1 . . . . . . . . . . Hauler Manifests 1 | . . . 1 . . . . . . . . . . . . . . . . . . . . . . . . Zone Layout 6 | . . . 1 . . 2 . . . . . . . . . . 1 . . . . 1 . . 1 . . Garrison Registry 2 | . . . . . . . . . . . . . . . . 2 . . . . . . . . . . . Patrol Navigation 1 | . . . . . 1 . . . . . . . . . . . . . . . . . . . . . . Security Stations 1 | . . . . . . . . . . . 1 . . . . . . . . . . . . . . . . Fabricator Hacks 2 | . . . . . . . . . . . . . . . . . 2 . . . . . . . . . . Load Schematic 1 | . . . . . . . . . . . . . . . . . 1 . . . . . . . . . . Build 1 | . . . . . . . . . . . . . . . . . 1 . . . . . . . . . . Repair Station Hacks 11 | . 6 . 4 . . 1 . . . . . . . . . . . . . . . . . . . . . Scan Component 6 | . 3 . 2 . . 1 . . . . . . . . . . . . . . . . . . . . . Repair 5 | . 3 . 2 . . . . . . . . . . . . . . . . . . . . . . . . Recycling Unit Hacks 2 | . . . . . . . . . . . . . . . . . . . . . . 2 . . . . . Retrieve Components 2 | . . . . . . . . . . . . . . . . . . . . . . 2 . . . . . Scanalyzer 26 | . . . 11 . . 6 . 4 . . . . . . . . . . . . . . . 5 . . . Insert Component 7 | . . . 4 . . 1 . 1 . . . . . . . . . . . . . . . 1 . . . Analyze 10 | . . . 6 . . 2 . 2 . . . . . . . . . . . . . . . . . . . Retrieve Study 9 | . . . 1 . . 3 . 1 . . . . . . . . . . . . . . . 4 . . . Garrison Access Hacks 8 | . . . . 1 . 1 . 1 . 1 . . . . 1 . . . . . . 1 . 2 . . . Unlock Access 6 | . . . . 1 . 1 . 1 . 1 . . . . 1 . . . . . . 1 . . . . . Seal Access 2 | . . . . . . . . . . . . . . . . . . . . . . . . 2 . . . Unauthorized Hacks 42 | . 11 . 11 3 . 1 1 . . . . 1 . . . . 1 . . . . 4 . 1 6 2 . Terminals 28 | . 9 . 10 1 . 1 1 . . . . . . . . . . . . . . 2 . . 3 1 . Track 1 | . . . 1 . . . . . . . . . . . . . . . . . . . . . . . . Assimilate 1 | . . . . . . 1 . . . . . . . . . . . . . . . . . . . . . Botnet 10 | . 2 . 3 1 . . 1 . . . . . . . . . . . . . . 2 . . . 1 . Disrupt 1 | . 1 . . . . . . . . . . . . . . . . . . . . . . . . . . Operators 1 | . . . 1 . . . . . . . . . . . . . . . . . . . . . . . . Skim 14 | . 6 . 5 . . . . . . . . . . . . . . . . . . . . . 3 . . Fabricators . | . . . . . . . . . . . . . . . . . . . . . . . . . . . . Repair Stations 6 | . . . . . . . . . . . . 1 . . . . 1 . . . . . . 1 2 1 . Mechanics 1 | . . . . . . . . . . . . . . . . . . . . . . . . . 1 . . Patch 5 | . . . . . . . . . . . . 1 . . . . 1 . . . . . . 1 1 1 . Recycling Units 5 | . 2 . . 1 . . . . . . . . . . . . . . . . . 2 . . . . . Reject 1 | . . . . . . . . . . . . . . . . . . . . . . 1 . . . . . Mask 1 | . . . . . . . . . . . . . . . . . . . . . . 1 . . . . . Tunnel 3 | . 2 . . 1 . . . . . . . . . . . . . . . . . . . . . . . Scanalyzers 2 | . . . 1 . . . . . . . . . . . . . . . . . . . . . 1 . . Extract 2 | . . . 1 . . . . . . . . . . . . . . . . . . . . . 1 . . Garrison Access 1 | . . . . 1 . . . . . . . . . . . . . . . . . . . . . . . Reprogram 1 | . . . . 1 . . . . . . . . . . . . . . . . . . . . . . . Data Cores Recovered . | . . . . . . . . . . . . . . . . . . . . . . . . . . . . Used . | . . . . . . . . . . . . . . . . . . . . . . . . . . . . Hacking Detections 63 | . 6 . 5 1 3 5 3 1 1 2 1 1 2 . 2 2 3 . . . . 4 1 3 12 3 2 Full Trace Events 10 | . . . . . . . 3 . . . . . . . . . 1 . . . . 1 . 1 2 . 2 Feedback Events 1 | . . . . . . . . . . . . . . . . . . . . . . . . . . . 1 Corruption 1 | . . . . . . . . . . . . . . . . . . . . . . . . . . . 1 Feedback Blocked . | . . . . . . . . . . . . . . . . . . . . . . . . . . . . Robot Schematics Acquired . | . . . . . . . . . . . . . . . . . . . . . . . . . . . . Robots Built . | . . . . . . . . . . . . . . . . . . . . . . . . . . . . Authchips . | . . . . . . . . . . . . . . . . . . . . . . . . . . . . Time . | . . . . . . . . . . . . . . . . . . . . . . . . . . . . Total Robot Build Rating . | . . . . . . . . . . . . . . . . . . . . . . . . . . . . Part Schematics Acquired 18 | . . . 8 . . 1 . 1 . . . . . . . . . . . 4 . . . . 4 . . Parts Built 3 | . . . . . . . . . . . . . . . . . 3 . . . . . . . . . . Authchips . | . . . . . . . . . . . . . . . . . . . . . . . . . . . . Time 25 | . . . . . . . . . . . . . . . . . 25 . . . . . . . . . . Total Part Build Rating 3 | . . . . . . . . . . . . . . . . . 3 . . . . . . . . . . Part Studies Acquired 9 | . . . 1 . . 3 . 1 . . . . . . . . . . . . . . . 4 . . . Parts Repaired 5 | . 3 . 2 . . . . . . . . . . . . . . . . . . . . . . . . Time 140 | . 78 . 62 . . . . . . . . . . . . . . . . . . . . . . . . Parts Recycled . | . . . . . . . . . . . . . . . . . . . . . . . . . . . . Recycled Matter . | . . . . . . . . . . . . . . . . . . . . . . . . . . . . Retrieved Matter . | . . . . . . . . . . . . . . . . . . . . . . . . . . . . Retrieved Components 9 | . . . . . . . . . . . . . . . . . . . . . . 9 . . . . . Parts Scanalyzed 6 | . . . 4 . . 1 . 1 . . . . . . . . . . . . . . . . . . . Part Schematics Acquired 6 | . . . 4 . . 1 . 1 . . . . . . . . . . . . . . . . . . . Parts Damaged 2 | . . . 1 . . 1 . . . . . . . . . . . . . . . . . . . . . Bothacking | -11 -10 -10 -9 -9 -9 -8 -8 -7 -7 -6 -6 -6 -6 -6 -6 -6 -5 -5 -5 -5 -4 -4 -4 -3 -3 -2 -1 ------------ Run | Yrd Mat Min Mat Sto Gar Mat Gar Fac Gar Fac Gar Ext Cet Arc Hub Gar Fac Upp Upp Zhi Pro Fac Gar Res Qua Res Acc Used RIF Installer 7 | . . . . . 2 . 1 . 1 . 1 . . . . 1 . . . . . . 1 . . . . Coupler Efficiency 1 | . . . . . . . . . . . . . . . . 1 . . . . . . . . . . . Code Merge 2 | . . . . . . . . . 1 . . . . . . . . . . . . . 1 . . . . Alert ID Control 1 | . . . . . 1 . . . . . . . . . . . . . . . . . . . . . . Structural Interface 1 | . . . . . . . 1 . . . . . . . . . . . . . . . . . . . . Autoassimilate 1 | . . . . . . . . . . . 1 . . . . . . . . . . . . . . . . Robots Hacked 9 | . . . . . . . . . . . . . . 8 . . . . . . . . . . 1 . . Non-combat 9 | . . . . . . . . . . . . . . 8 . . . . . . . . . . 1 . . Combat . | . . . . . . . . . . . . . . . . . . . . . . . . . . . . Robot Hacks Applied 9 | . . . . . . . . . . . . . . 8 . . . . . . . . . . 1 . . generate_echo 1 | . . . . . . . . . . . . . . 1 . . . . . . . . . . . . . formatsys_low 8 | . . . . . . . . . . . . . . 7 . . . . . . . . . . 1 . . Relay Couplers Released 49 | . . . . . 12 . 7 . 4 . 17 . . . . . . . . . . . 9 . . . . Machine Destruction 49 | . . . . . 12 . 7 . 4 . 17 . . . . . . . . . . . 9 . . . . Attached 3 | . . . . . . . . . . . . . . 2 . . . . . . . . . . 1 . . Fabnet Peak Effective % . | . . . . . . . . . . . . . . . . . . . . . . . . . . . . Robots Rewired 28 | . . . . . . . 9 . . . . 15 . . . 1 . . . . 2 . . . 1 . . Allies Hacked 1 | . . . . . . . . . . . . . . . . 1 . . . . . . . . . . . Hacks Repelled . | . . . . . . . . . . . . . . . . . . . . . . . . . . . . Allies | -11 -10 -10 -9 -9 -9 -8 -8 -7 -7 -6 -6 -6 -6 -6 -6 -6 -5 -5 -5 -5 -4 -4 -4 -3 -3 -2 -1 -------- Run | Yrd Mat Min Mat Sto Gar Mat Gar Fac Gar Fac Gar Ext Cet Arc Hub Gar Fac Upp Upp Zhi Pro Fac Gar Res Qua Res Acc Total Allies 49 | . . 1 . 2 . 1 9 . 2 . . 16 5 7 . 1 . . . . 2 . 1 . 2 . . Largest Group 20 | . . 1 1 2 2 1 9 7 2 . . 13 17 20 20 20 12 . . . 2 . 1 . 1 . . Highest-Rated Group 931 | . . 31 31 16 16 10 187 138 157 . . 462 908 931 931 931 615 . . . 97 . 29 . 145 . . Highest-Rated Ally 159 | . . 31 31 8 8 10 31 26 95 . . 159 159 151 96 99 99 . . . 49 . 29 . 145 . . Total Orders 17 | . . . . . . . 5 . . . . . . 4 . . . . . . . . . . 8 . . STAY 6 | . . . . . . . 2 . . . . . . 1 . . . . . . . . . . 3 . . ROAM 1 | . . . . . . . . . . . . . . 1 . . . . . . . . . . . . . FOLLOW 7 | . . . . . . . 3 . . . . . . 2 . . . . . . . . . . 2 . . AID 1 | . . . . . . . . . . . . . . . . . . . . . . . . . 1 . . EXPLORE 2 | . . . . . . . . . . . . . . . . . . . . . . . . . 2 . . Ally Attacks 415 | . . . 6 . 8 . 30 11 26 . . 61 30 39 . 74 73 . . . 34 . 8 . 15 . . Total Damage 12335 | . . . 104 . 34 . 603 58 1013 . . 1119 813 1369 . 2117 2742 . . . 1214 . 88 . 1061 . . Kills 90 | . . . 1 . 2 . 6 . 18 . . 6 6 4 . 18 14 . . . 11 . 1 . 3 . . Allies Corrupted 1 | . . . . . . . . . . . . . . . . 1 . . . . . . . . . . . Allies Melted . | . . . . . . . . . . . . . . . . . . . . . . . . . . . . Intel | -11 -10 -10 -9 -9 -9 -8 -8 -7 -7 -6 -6 -6 -6 -6 -6 -6 -5 -5 -5 -5 -4 -4 -4 -3 -3 -2 -1 ------- Run | Yrd Mat Min Mat Sto Gar Mat Gar Fac Gar Fac Gar Ext Cet Arc Hub Gar Fac Upp Upp Zhi Pro Fac Gar Res Qua Res Acc Active Infowar (turns) 1147 | 38 871 . 142 . . . . . . . . . . . . . . . . . . . . . 6 5 85 Optics 2 | . . . . . . . . . . . . . . . . . . . . . . . . . . 2 . Sensors 1 | . . . 1 . . . . . . . . . . . . . . . . . . . . . . . . A.S.S. 85 | . . . . . . . . . . . . . . . . . . . . . . . . . . . 85 Terrain 1 | . . . . . . . . . . . . . . . . . . . . . . . . . . 1 . Structural 555 | . 553 . . . . . . . . . . . . . . . . . . . . . . . 2 . . Seismic 1025 | 38 846 . 141 . . . . . . . . . . . . . . . . . . . . . . . . T.N.C. 39 | . 39 . . . . . . . . . . . . . . . . . . . . . . . . . . Machine Analysis 4 | . . . . . . . . . . . . . . . . . . . . . . . . . 4 . . ECM 2 | . . . . . . . . . . . . . . . . . . . . . . . . . . 2 . Robot Analysis Total 5 | . 1 . . . . . . . . . . . . . . . . . . 4 . . . . . . . Derelict Logs Recovered 5 | . . 1 . . . . . . . . . . . . . . . . 2 . 2 . . . . . . Drone Launches 3 | . . . . . . . . . . . . . . . . . . . . . . . . . 3 . . Drone Recoveries 1 | . . . . . . . . . . . . . . . . . . . . . . . . . 1 . . Exploration | -11 -10 -10 -9 -9 -9 -8 -8 -7 -7 -6 -6 -6 -6 -6 -6 -6 -5 -5 -5 -5 -4 -4 -4 -3 -3 -2 -1 ------------- Run | Yrd Mat Min Mat Sto Gar Mat Gar Fac Gar Fac Gar Ext Cet Arc Hub Gar Fac Upp Upp Zhi Pro Fac Gar Res Qua Res Acc Turns Passed 29052 | 58 1028 452 908 49 1368 1470 1569 267 970 158 886 1135 535 721 72 625 1225 766 844 297 1279 741 1543 2244 4118 2690 1034 Spaces Moved 14200 | 40 760 434 361 28 598 622 623 114 401 95 416 425 238 392 26 242 601 412 345 121 541 339 705 1178 2554 1142 447 Core 254 | 39 83 . . . . . . . . . . . . . . . . . . . . . . . 132 . . Treads 11510 | . . . 296 28 598 622 623 114 401 95 416 425 238 392 26 242 601 412 345 121 541 339 705 1178 1163 1142 447 Legs . | . . . . . . . . . . . . . . . . . . . . . . . . . . . . Wheels 1337 | 1 677 434 65 . . . . . . . . . . . . . . . . . . . . . 160 . . Hover 731 | . . . . . . . . . . . . . . . . . . . . . . . . . 731 . . Flight 368 | . . . . . . . . . . . . . . . . . . . . . . . . . 368 . . Fastest Speed 35 | 50 50 95 95 160 160 160 200 205 205 163 163 163 160 160 160 160 160 160 240 240 160 160 160 160 35 135 135 Average Speed 154 | 51 88 95 163 160 161 191 204 205 205 163 173 193 168 160 160 160 160 180 240 240 203 163 172 160 102 154 142 Slowest Speed 320 | 100 100 95 240 160 240 200 205 205 250 163 225 229 216 160 160 160 240 240 240 240 240 165 240 160 320 160 215 Overloaded Moves . | . . . . . . . . . . . . . . . . . . . . . . . . . . . . Propulsion Burnouts . | . . . . . . . . . . . . . . . . . . . . . . . . . . . . Robots Hopped 1 | . . . . . . . . . . . . . . . . . . . . . . . . . 1 . . Potential Cave-ins 1 | . . . . . . . . . . . . . . . . . . . . . . . . . . . 1 Cave-ins Triggered 1 | . . . . . . . . . . . . . . . . . . . . . . . . . . . 1 Teleports 5 | . . . . . . . . . . . . . . . . . . . . . . . . . 1 2 2 Exploration Rate (%) 51 | 3 97 93 43 7 78 62 75 4 61 3 62 70 70 97 5 45 28 61 60 60 67 15 82 45 98 41 17 Regions Visited 27 Branch Regions 11 Pre-discovered Areas 13 | . 4 1 4 1 . . . . . . . . . . . . . . . 3 . . . . . . . Known Exits Taken 9 | . . 1 1 1 . 1 . 1 . 1 . . . . 1 . . . . . . 1 . . 1 . . Unknown Exits Taken 12 | 1 1 . . . . . . . . . . 1 1 1 . . 1 1 1 1 1 . . 1 . 1 . Scrap Searched 4 | . . 2 . . . . . . . . . . . . . . . . 2 . . . . . . . . Spaces Dug 62 | . . . 3 . 11 . 2 . 12 . . . . . . 1 . . . . . 3 . 5 11 13 1 Terrain Destroyed 655 | . 17 . 3 . 11 45 2 . 12 . 1 16 1 . . 4 36 12 6 . 35 3 21 28 75 185 142 Melee 50 | . . . 3 . 11 . 2 . 12 . . . . . . 1 . . . . . 2 . 3 4 12 . Projectile 338 | . . . . . . . . . . . 1 2 1 . . 1 36 12 5 . 35 1 20 19 39 139 27 AOE 251 | . 17 . . . . 45 . . . . . 14 . . . . . . . . . . . . 27 33 115 Terrain Rammed . | . . . . . . . . . . . . . . . . . . . . . . . . . . . . Walls Destroyed . | . . . . . . . . . . . . . . . . . . . . . . . . . . . . Machines Disabled . | . . . . . . . . . . . . . . . . . . . . . . . . . . . . Actions | -11 -10 -10 -9 -9 -9 -8 -8 -7 -7 -6 -6 -6 -6 -6 -6 -6 -5 -5 -5 -5 -4 -4 -4 -3 -3 -2 -1 --------- Run | Yrd Mat Min Mat Sto Gar Mat Gar Fac Gar Fac Gar Ext Cet Arc Hub Gar Fac Upp Upp Zhi Pro Fac Gar Res Qua Res Acc Total 18532 | 58 978 468 523 30 784 783 855 136 484 98 493 691 356 475 56 422 751 426 353 127 641 426 855 1362 3675 1579 647 Wait 1524 | . 102 29 37 . 20 33 30 4 15 . 14 53 87 43 30 90 45 3 1 . 40 5 50 15 666 71 41 Move 14173 | 39 759 433 360 27 597 622 622 114 400 94 415 424 237 391 26 241 600 411 344 120 540 339 704 1177 2551 1141 445 Hop 1 | . . . . . . . . . . . . . . . . . . . . . . . . . 1 . . Pick Up 161 | 5 7 3 8 . 3 12 10 2 . . . 7 2 14 . 1 5 4 2 2 2 2 3 7 33 18 9 Fast Attach 228 | 5 8 . 7 . 3 . . 1 . 1 10 4 2 6 . . 4 . . 2 4 13 15 19 78 26 20 Attach 122 | . 5 . 3 . 5 9 2 3 4 3 2 2 . . . 4 10 . 1 . 6 2 3 9 28 10 11 Detach 38 | . 1 . 1 . . . . . . . . 3 2 . . . 1 . . . . . 2 5 16 3 4 Swap 328 | . 6 . 15 2 26 16 14 1 10 . 1 5 6 2 . 11 19 2 1 2 6 2 3 30 56 88 4 Drop 229 | 1 13 . 15 . 10 13 12 1 2 . 3 5 11 6 . 2 7 1 . 1 1 . . 17 62 39 7 Fire 1124 | 8 77 3 69 . 87 76 47 9 36 . 44 21 9 13 . 19 58 5 4 . 38 46 70 43 89 158 95 Melee 210 | . . . 7 1 33 . 13 . 13 . 4 . . . . 5 . . . . . 14 1 11 83 25 . Ram . | . . . . . . . . . . . . . . . . . . . . . . . . . . . . Kick . | . . . . . . . . . . . . . . . . . . . . . . . . . . . . Crush 21 | . . . 1 . . 2 . 1 . . . . . . . . 2 . . . . 3 . 2 . . 10 Escape Stasis 19 | . . . . . . . 10 . 4 . . . . . . . . . . . . . 4 . . . 1 Rewire 326 | . . . . . . . 95 . . . . 167 . . . 49 . . . . 4 . . . 11 . . Trap . | . . . . . . . . . . . . . . . . . . . . . . . . . . . . Miscellaneous 28 | . . . . . . . . . . . . . . . . . . . . . . . . 27 1 . . Route ------- -11/Scrapyard -10/Materials (discovered 6 exits: *Mat x3 / [*Min x2] / *Sub) -10/Mines (discovered 3 exits: *Mat x2 / Sub) -9/Materials (discovered 5 exits: Mat x2 / *Min x2 / *Sto) -9/Storage (discovered 2 exits: Mat / Gar) -9/Garrison (discovered 3 exits: *Mat x3) -8/Materials (discovered 3 exits: *Fac x2 / Gar) -8/Garrison (discovered 3 exits: *Fac x3) -7/Factory (discovered 2 exits: [*Low] / Gar) -7/Garrison -6/Factory -6/Garrison (discovered 2 exits: *Ext x2) -6/Extension (discovered 3 exits: *Fac x2 / *Cet) -6/Cetus (discovered 2 exits: *Fac / [*Arc]) -6/Archives (discovered 3 exits: *Fac / *Hub x2) -6/Hub_04(d) -6/Garrison (discovered 3 exits: *Fac x3) -5/Factory (discovered 3 exits: *Fac x2 / *Upp) -5/Upper Caves -5/Upper Caves (discovered 2 exits: *Fac / *Zhi) -5/Zhirov -4/Proximity Caves -4/Factory (discovered 4 exits: *Res x2 / Arm / Gar) -4/Garrison (discovered 3 exits: *Res x3) -3/Research (discovered 2 exits: *Res / *Qua) -3/Quarantine -2/Research (discovered 2 exits: *Acc / [*Tes]) -1/Access Tau Ceti IV Orbit History --------- Turn | Location | Event 12 | -11/Scrapyard | Discovered new exit (range 16) 59 | -11/Scrapyard | Entered Materials 59 | -10/Materials | Discovered new exit (range 7) 134 | -10/Materials | Discovered new exit (range 16) 466 | -10/Materials | Discovered new exit (range 5) 537 | -10/Materials | Discovered new exit (range 10) 607 | -10/Materials | Learned location of 2 exits from Mines 679 | -10/Materials | Identified exit to Materials 743 | -10/Materials | Learned location of Storage (-9) 860 | -10/Materials | Build established: Scavenger-Mutant 929 | -10/Materials | Learned 2 Mines zone layouts 986 | -10/Materials | Learned location of 2 exits from Subcaves 987 | -10/Materials | Repaired Lgt. Ion Engine 1015 | -10/Materials | Repaired Lgt. Treads 1045 | -10/Materials | Repaired Lgt. Assault Rifle 1052 | -10/Materials | Learned location of Subcaves (-10) 1087 | -10/Materials | Entered Mines 1089 | -10/Mines | Identified exit to Subcaves 1094 | -10/Mines | Core integrity fell below 50% 1097 | -10/Mines | Escorted by a lone wolf Derelict 1192 | -10/Mines | Found a damaged Exp. Sensor Array with a note attached 1194 | -10/Mines | Found Prototype Device 1235 | -10/Mines | Found a hidden stash of uninstalled traps 1357 | -10/Mines | Learned Materials terminal intel 1539 | -10/Mines | Entered Materials 1539 | -9/Materials | Accompanied by 1 ally 1539 | -9/Materials | Evolved 2 slots: Utility x1, Weapon x1 1539 | -9/Materials | Identified Exp. Sensor Array 1540 | -9/Materials | Identified exit to Storage 1541 | -9/Materials | Loaded intel: 12 terminal locations 1549 | -9/Materials | Central database locked down 1823 | -9/Materials | Discovered new exit (range 4) 1952 | -9/Materials | Repaired Broken Lgt. Treads? 1971 | -9/Materials | Build established: Scavenger-Tank 2056 | -9/Materials | Identified exit to Mines 2220 | -9/Materials | Identified exit to Materials 2259 | -9/Materials | Destroyed 8 combat bots 2322 | -9/Materials | Repaired Weapon Shielding 2339 | -9/Materials | First assault squad dispatched 2349 | -9/Materials | Learned location of Zion (-7) 2447 | -9/Materials | Entered Storage 2480 | -9/Storage | Identified exit to Garrison 2496 | -9/Storage | Entered Garrison 2496 | -9/Garrison | Accompanied by 2 allies 2538 | -9/Garrison | Triggered checkpoint 2569 | -9/Garrison | Garrison Relay disabled 2720 | -9/Garrison | Triggered checkpoint 2754 | -9/Garrison | Core integrity fell below 50% 2781 | -9/Garrison | Lost 5 parts (2n1u2w) 2860 | -9/Garrison | Discovered exit to Materials (range 12) 2936 | -9/Garrison | Triggered checkpoint 3005 | -9/Garrison | Garrison Relay disabled 3168 | -9/Garrison | Triggered checkpoint 3201 | -9/Garrison | Garrison Relay disabled 3336 | -9/Garrison | Triggered checkpoint 3388 | -9/Garrison | Discovered exit to Materials (range 13) 3507 | -9/Garrison | Triggered checkpoint 3522 | -9/Garrison | Garrison Relay disabled 3577 | -9/Garrison | Core integrity fell below 20% 3698 | -9/Garrison | Installed Relay Interface Framework 3781 | -9/Garrison | Expanded RIF knowledge: Alert ID Control 3864 | -9/Garrison | Entered Materials 3864 | -8/Materials | Evolved 2 slots: Weapon x2 4058 | -8/Materials | Build established: Scavenger-Gunner 4264 | -8/Materials | First assault squad dispatched 4771 | -8/Materials | Lost 3 parts (1n2w) 4910 | -8/Materials | Discovered new exit (range 16) 5167 | -8/Materials | Discovered new exit (range 3) 5287 | -8/Materials | Garrison activated, responded to threat 5334 | -8/Materials | Identified exit to Garrison 5334 | -8/Materials | Entered Garrison 5334 | -8/Garrison | Accompanied by 1 ally 5390 | -8/Garrison | Triggered checkpoint 5460 | -8/Garrison | Triggered checkpoint 5624 | -8/Garrison | Triggered checkpoint 5633 | -8/Garrison | Triggered checkpoint 5716 | -8/Garrison | Discovered new exit (range 8) 5738 | -8/Garrison | Triggered checkpoint 5804 | -8/Garrison | Garrison Relay disabled 5900 | -8/Garrison | Build established: Gunner 6126 | -8/Garrison | Triggered checkpoint 6153 | -8/Garrison | Garrison Relay disabled 6282 | -8/Garrison | Discovered new exit (range 4) 6379 | -8/Garrison | Expanded RIF knowledge: Structural Interface 6388 | -8/Garrison | Build established: Commander-Gunner 6879 | -8/Garrison | Discovered new exit (range 11) 6903 | -8/Garrison | Entered Factory 6903 | -7/Factory | Accompanied by 7 allies 6903 | -7/Factory | Evolved 2 slots: Utility x1, Weapon x1 7074 | -7/Factory | Discovered new exit (range 4) 7114 | -7/Factory | Garrison activated, responded to threat 7170 | -7/Factory | Identified exit to Garrison 7170 | -7/Factory | Entered Garrison 7170 | -7/Garrison | Accompanied by 1 ally 7177 | -7/Garrison | Lost 3 allies 7318 | -7/Garrison | Assembled breached garrison interior 7407 | -7/Garrison | Garrison Relay disabled 7424 | -7/Garrison | Build established: Scavenger-Executioner 7672 | -7/Garrison | Discovered new exit (range 10) 7737 | -7/Garrison | Found embedded Infiltrators 7998 | -7/Garrison | Expanded RIF knowledge: Code Merge 8140 | -7/Garrison | Entered Factory 8140 | -6/Factory | Evolved 2 slots: Propulsion x1, Weapon x1 8168 | -6/Factory | Lost 9 parts (1p2n1u5w) 8249 | -6/Factory | Identified exit to Garrison 8298 | -6/Factory | Entered Garrison 8320 | -6/Garrison | Triggered checkpoint 8418 | -6/Garrison | Learned Extension security intel 8448 | -6/Garrison | Build established: Executioner 8552 | -6/Garrison | Spotted B-75 Beast 8571 | -6/Garrison | Destroyed B-75 Beast 8632 | -6/Garrison | Destroyed 7 combat bots 8656 | -6/Garrison | Triggered checkpoint 8707 | -6/Garrison | Garrison Relay disabled 8744 | -6/Garrison | Triggered checkpoint 8841 | -6/Garrison | Garrison Relay disabled 8845 | -6/Garrison | Garrison Relay disabled 8854 | -6/Garrison | Garrison Relay disabled 8862 | -6/Garrison | Garrison Relay disabled 8913 | -6/Garrison | Build established: Scavenger-Executioner 8928 | -6/Garrison | Discovered new exit (range 8) 9002 | -6/Garrison | Triggered checkpoint 9147 | -6/Garrison | Discovered new exit (range 9) 9163 | -6/Garrison | Expanded RIF knowledge: Autoassimilate 9184 | -6/Garrison | Entered Extension 9282 | -6/Extension | Energy Cycler disabled 9282 | -6/Extension | Rescued a captive Derelict 9286 | -6/Extension | Rescued a captive Derelict 9286 | -6/Extension | Rescued a captive Derelict 9377 | -6/Extension | Rescued A7 9702 | -6/Extension | Spotted B-75 Beast 9738 | -6/Extension | Spotted B-75 Beast 9758 | -6/Extension | Destroyed B-75 Beast 9764 | -6/Extension | Discovered new exit (range 15) 9964 | -6/Extension | Build established: Commander-Executioner 10259 | -6/Extension | Discovered new exit (range 10) 10261 | -6/Extension | Discovered new exit (range 6) 10319 | -6/Extension | Entered Cetus 10319 | -6/Cetus | Accompanied by 13 allies (A7) 10324 | -6/Cetus | Acquired a Cetus Manufacturing Module code from A7 10345 | -6/Cetus | Spotted Cetus Guard 10345 | -6/Cetus | Spotted Cetus Guard 10354 | -6/Cetus | Allies destroyed Cetus Guard 10354 | -6/Cetus | Spotted Cetus Guard 10354 | -6/Cetus | Destroyed Cetus Guard 10354 | -6/Cetus | Destroyed Cetus Guard 10355 | -6/Cetus | Spotted Cetus Guard 10371 | -6/Cetus | Allies destroyed Cetus Guard 10490 | -6/Cetus | Started Cetus Manufacturing Module 10515 | -6/Cetus | Manufactured an Enhanced Grunt 10540 | -6/Cetus | Manufactured an Enhanced Grunt 10565 | -6/Cetus | Manufactured an Enhanced Grunt 10590 | -6/Cetus | Manufactured an Enhanced Grunt 10599 | -6/Cetus | Escorted A7 to Cetus Mainframe 10615 | -6/Cetus | Manufactured an Enhanced Grunt 10625 | -6/Cetus | Discovered new exit (range 16) 10654 | -6/Cetus | Spotted Cetus Guard 10655 | -6/Cetus | Destroyed Cetus Guard 10655 | -6/Cetus | Spotted Cetus Guard 10658 | -6/Cetus | Spotted Cetus Guard 10659 | -6/Cetus | Spotted Cetus Guard 10660 | -6/Cetus | Allies destroyed Cetus Guard 10662 | -6/Cetus | Allies destroyed Cetus Guard 10665 | -6/Cetus | Destroyed Cetus Guard 10674 | -6/Cetus | Discovered new exit (range 15) 10682 | -6/Cetus | Met Revision 17 10854 | -6/Cetus | Entered Archives 10854 | -6/Archives | Accompanied by 16 allies (A7) 10859 | -6/Archives | Received a hacking code to weaken MAIN.C 10934 | -6/Archives | Discovered new exit (range 15) 10945 | -6/Archives | Discovered new exit (range 13) 11161 | -6/Archives | Found Prototype Device 11161 | -6/Archives | Identified Exp. Thermal Shield 11248 | -6/Archives | Discovered new exit (range 15) 11575 | -6/Archives | Entered Hub_04(d) 11575 | -6/Hub_04(d) | Accompanied by 20 allies 11617 | -6/Hub_04(d) | Identified exit to Garrison 11647 | -6/Hub_04(d) | Entered Garrison 11647 | -6/Garrison | Accompanied by 20 allies 11670 | -6/Garrison | Discovered new exit (range 54) 11670 | -6/Garrison | Discovered new exit (range 81) 11670 | -6/Garrison | Discovered new exit (range 40) 11699 | -6/Garrison | Expanded RIF knowledge: Coupler Efficiency 11727 | -6/Garrison | Spotted B-75 Beast 11745 | -6/Garrison | Triggered checkpoint 11753 | -6/Garrison | Triggered checkpoint 11759 | -6/Garrison | Allies destroyed B-75 Beast 11767 | -6/Garrison | Triggered checkpoint 11788 | -6/Garrison | P-60 Hacker assimilated allied DB-JFA(g) 11799 | -6/Garrison | Triggered checkpoint 11815 | -6/Garrison | Triggered checkpoint 11816 | -6/Garrison | Lost 7 allies 12079 | -6/Garrison | Rewired Striker 12185 | -6/Garrison | Discovered new exit (range 71) 12185 | -6/Garrison | Discovered new exit (range 14) 12185 | -6/Garrison | Discovered new exit (range 52) 12191 | -6/Garrison | Triggered checkpoint 12272 | -6/Garrison | Entered Factory 12272 | -5/Factory | Accompanied by 12 allies 12272 | -5/Factory | Evolved 2 slots: Weapon x2 12386 | -5/Factory | Discovered new exit (range 9) 12636 | -5/Factory | Spotted B-75 Beast 12642 | -5/Factory | Destroyed B-75 Beast 12730 | -5/Factory | Fabricated Lgt. Assault Rifle (x3) 12843 | -5/Factory | Build established: Scavenger-Executioner 12940 | -5/Factory | Lost 3 allies 12990 | -5/Factory | Discovered new exit (range 4) 13069 | -5/Factory | Garrison activated, responded to threat 13148 | -5/Factory | Lost 3 allies 13172 | -5/Factory | First assault squad dispatched 13181 | -5/Factory | Destroyed 11 combat bots 13347 | -5/Factory | Destroyed 7 combat bots 13350 | -5/Factory | Lost 4 parts (1p1u2w) 13464 | -5/Factory | Lost 3 parts (3w) 13486 | -5/Factory | Discovered new exit (range 5) 13497 | -5/Factory | Entered Upper Caves 14004 | -5/Upper Caves | Discovered new exit (range 11) 14263 | -5/Upper Caves | Entered another Upper Caves area 14328 | -5/Upper Caves | Discovered new exit (range 6) 14601 | -5/Upper Caves | Learned Factory emergency access door positions 14603 | -5/Upper Caves | Learned 4 Factory zone layouts 15075 | -5/Upper Caves | Discovered new exit (range 14) 15107 | -5/Upper Caves | Entered Zhirov 15107 | -5/Zhirov | Discovered new exit (range 3) 15151 | -5/Zhirov | Met Zhirov 15206 | -5/Zhirov | Found Alien Artifact 15206 | -5/Zhirov | Identified Integrated Reactor 15206 | -5/Zhirov | Installed Integrated Reactor, increased core energy generation (+10) 15269 | -5/Zhirov | Found Alien Artifact 15327 | -5/Zhirov | Learned location of Quarantine (-3) 15327 | -5/Zhirov | Learned location of Testing (-2) 15327 | -5/Zhirov | Learned location of Command (-1) 15339 | -5/Zhirov | Zhirov requested help retrieving the SGEMP Prototype 15404 | -5/Zhirov | Entered Proximity Caves 15411 | -4/Proximity Caves | Attracted the attention of an 0b10 outpost 15482 | -4/Proximity Caves | Lost 3 parts (3w) 15925 | -4/Proximity Caves | Learned Research terminal intel 16098 | -4/Proximity Caves | Spotted B-86 Titan 16124 | -4/Proximity Caves | Destroyed B-86 Titan 16390 | -4/Proximity Caves | Lost 4 parts (4w) 16518 | -4/Proximity Caves | Discovered new exit (range 6) 16569 | -4/Proximity Caves | Attracted the attention of an 0b10 checkpoint 16641 | -4/Proximity Caves | Lost 3 parts (1n2w) 16683 | -4/Proximity Caves | Entered Factory 16683 | -4/Factory | Evolved 2 slots: Propulsion x1, Weapon x1 16684 | -4/Factory | Identified exit to Armory 16684 | -4/Factory | Identified exit to Research 16786 | -4/Factory | Discovered exit to Research (range 16) 17098 | -4/Factory | Destroyed 9 combat bots 17100 | -4/Factory | Lost 7 parts (1p2n1u3w) 17389 | -4/Factory | Build established: Scavenger-Gunner 17424 | -4/Factory | Identified exit to Garrison 17424 | -4/Factory | Entered Garrison 17506 | -4/Garrison | Heavy support dispatched to Research 17508 | -4/Garrison | Garrison Relay disabled 17544 | -4/Garrison | Triggered checkpoint 17586 | -4/Garrison | Expanded RIF knowledge: Code Merge 17650 | -4/Garrison | Spotted B-86 Titan 17694 | -4/Garrison | Destroyed B-86 Titan 17708 | -4/Garrison | Triggered checkpoint 17719 | -4/Garrison | Lost 4 parts (1n1u2w) 17752 | -4/Garrison | Triggered checkpoint 17754 | -4/Garrison | Heavy support dispatched to Research 17822 | -4/Garrison | Triggered checkpoint 17893 | -4/Garrison | Garrison Relay disabled 18001 | -4/Garrison | Discovered exit to Research (range 13) 18070 | -4/Garrison | Triggered checkpoint 18149 | -4/Garrison | Build established: Scavenger-Executioner 18202 | -4/Garrison | Discovered exit to Research (range 10) 18214 | -4/Garrison | Triggered checkpoint 18261 | -4/Garrison | Lost 3 parts (2n1w) 18282 | -4/Garrison | Rescued a captive Derelict 18353 | -4/Garrison | Garrison Relay disabled 18609 | -4/Garrison | Heavy support dispatched to Research 18719 | -4/Garrison | Discovered exit to Research (range 10) 18947 | -4/Garrison | Spotted B-86 Titan 18967 | -4/Garrison | Entered Research 18967 | -3/Research | Evolved 2 slots: Propulsion x2 18968 | -3/Research | Loaded intel: 25 terminal locations 18996 | -3/Research | Lost 3 parts (1p2w) 19167 | -3/Research | Revision forces began assault on 0b10 19215 | -3/Research | Met up with Revision 17++ 19270 | -3/Research | Build established: Scavenger-Gunner 19580 | -3/Research | Lost 3 allies 19667 | -3/Research | Research terminal network offline 19701 | -3/Research | Lost 3 allies 19732 | -3/Research | Build established: Scavenger-Executioner 19807 | -3/Research | Central database locked down 19807 | -3/Research | Identified Transdimensional Reconstructor 20311 | -3/Research | Discovered new exit (range 11) 20328 | -3/Research | Identified exit to Research 20371 | -3/Research | Spotted Striker 20373 | -3/Research | Destroyed Striker 20373 | -3/Research | Destroyed Striker 20433 | -3/Research | Spotted Striker 20434 | -3/Research | Destroyed Striker 20503 | -3/Research | Spotted Striker 20508 | -3/Research | Destroyed Striker 20539 | -3/Research | Spotted Striker 20540 | -3/Research | Destroyed Striker 20542 | -3/Research | Spotted Striker 20542 | -3/Research | Spotted Striker 20552 | -3/Research | Destroyed Striker 20561 | -3/Research | Spotted Striker 20566 | -3/Research | Destroyed Striker 20571 | -3/Research | Destroyed Striker 20633 | -3/Research | Found Prototype Processor 20633 | -3/Research | Identified Exp. Targeting Computer 20969 | -3/Research | Spotted Striker 20971 | -3/Research | Spotted Striker 20982 | -3/Research | Destroyed Striker 20986 | -3/Research | Destroyed Striker 21206 | -3/Research | Discovered new exit (range 5) 21211 | -3/Research | Entered Quarantine 21287 | -3/Quarantine | Found Alien Artifact 21287 | -3/Quarantine | Identified Phase Redirector 21711 | -3/Quarantine | First assault squad dispatched 21734 | -3/Quarantine | Garrison activated, responded to threat 21796 | -3/Quarantine | System corruption reached 10% 21878 | -3/Quarantine | Destroyed 11 combat bots 21885 | -3/Quarantine | Lost 18 parts (4n2u12w) 22061 | -3/Quarantine | Lost 4 parts (2n1u1w) 22144 | -3/Quarantine | Cryocooling Duct disabled 22159 | -3/Quarantine | Ambient heat levels rising (+20) 22159 | -3/Quarantine | Non-combat units ordered to evacuate 22248 | -3/Quarantine | Found Fusion Bomb Launcher 22266 | -3/Quarantine | Discovered exit to Research (range 15) 22271 | -3/Quarantine | Spotted Alpha 7 22316 | -3/Quarantine | Build established: Scavenger-Mutant 22343 | -3/Quarantine | System corruption reached 30% 22364 | -3/Quarantine | Core integrity fell below 50% 22410 | -3/Quarantine | Lost 5 parts (1p2n1u1w) 22455 | -3/Quarantine | Cryocooling Duct disabled 22461 | -3/Quarantine | Cryocooling Duct disabled 22470 | -3/Quarantine | Ambient heat levels rising (+20) 22470 | -3/Quarantine | Combat units ordered to evacuate 22476 | -3/Quarantine | Ambient heat levels rising (+20) 22570 | -3/Quarantine | Quarantine Guard activated 22577 | -3/Quarantine | Found Alien Artifact 22577 | -3/Quarantine | Identified Core Reset Matrix 22577 | -3/Quarantine | Used Core Reset Matrix 22581 | -3/Quarantine | Detected hypermatrix surge 22581 | -3/Quarantine | Sensed 15 artifacts in vicinity 22592 | -3/Quarantine | Spotted Quarantine Guard 22613 | -3/Quarantine | Spotted Quarantine Guard 22635 | -3/Quarantine | Found Transdimensional Reconstructor 22650 | -3/Quarantine | Warped through subspace 22651 | -3/Quarantine | Core integrity fell below 20% 22681 | -3/Quarantine | Found Phase Armor 22717 | -3/Quarantine | Rewired Quarantine Guard 22727 | -3/Quarantine | Build established: Mutant 22746 | -3/Quarantine | Spotted Quarantine Guard 22749 | -3/Quarantine | Spotted Quarantine Guard 22863 | -3/Quarantine | Spotted Quarantine Guard 22898 | -3/Quarantine | Allies destroyed Quarantine Guard 22936 | -3/Quarantine | Found Sigix Broadsword 22981 | -3/Quarantine | Destroyed Quarantine Guard 23036 | -3/Quarantine | Spotted Quarantine Guard 23063 | -3/Quarantine | Allies destroyed Quarantine Guard 23140 | -3/Quarantine | Build established: Scavenger-Mutant 23155 | -3/Quarantine | Spotted Quarantine Guard 23228 | -3/Quarantine | Destroyed Quarantine Guard 23319 | -3/Quarantine | Found Subatomic Replicator 23384 | -3/Quarantine | Destroyed Quarantine Guard 23588 | -3/Quarantine | Destroyed Quarantine Guard 23912 | -3/Quarantine | Found Hpw. Transdimensional Reconstructor 23915 | -3/Quarantine | Found Hpw. Transdimensional Reconstructor 23917 | -3/Quarantine | Found Transdimensional Reconstructor 23928 | -3/Quarantine | Found Dimensional Node Initializer 23966 | -3/Quarantine | Met incapacitated Sigix Warrior 23966 | -3/Quarantine | Lockdown squad dispatched 23969 | -3/Quarantine | Acquired the access code to the Sigix quarantine chamber 23972 | -3/Quarantine | Unlocked Sigix quarantine chamber 23979 | -3/Quarantine | Found Sigix Containment Pod 24011 | -3/Quarantine | Spotted Lightning 24054 | -3/Quarantine | Build established: Scavenger-Executioner 24307 | -3/Quarantine | Spotted Lightning 24307 | -3/Quarantine | Spotted Lightning 24340 | -3/Quarantine | Destroyed Lightning 24514 | -3/Quarantine | Discovered exit to Research (range 14) 24514 | -3/Quarantine | Spotted Quarantine Guard 24515 | -3/Quarantine | Spotted Quarantine Guard 24608 | -3/Quarantine | Destroyed Quarantine Guard 24623 | -3/Quarantine | Destroyed Quarantine Guard 24749 | -3/Quarantine | Spotted Quarantine Guard 24767 | -3/Quarantine | Spotted Quarantine Guard 24779 | -3/Quarantine | Destroyed Quarantine Guard 24821 | -3/Quarantine | Destroyed Quarantine Guard 25318 | -3/Quarantine | Found Matter Drive 25329 | -3/Quarantine | Entered Research 25329 | -2/Research | Evolved 2 slots: Power x1, Propulsion x1 25719 | -2/Research | Discovered new exit (range 15) 25769 | -2/Research | Garrison activated, responded to threat 25943 | -2/Research | Warped through subspace 26219 | -2/Research | Cargo convoy interrupted 26329 | -2/Research | First assault squad dispatched 26552 | -2/Research | Spotted B-90 Cyclops 26730 | -2/Research | Found Prototype Processor 26730 | -2/Research | Identified Exp. Core Analyzer 26759 | -2/Research | System corruption reached 10% 26858 | -2/Research | Found Prototype Device 26858 | -2/Research | Identified Exp. ECM Suite 27670 | -2/Research | Found Prototype Device 27670 | -2/Research | Identified Adv. Particle Accelerator 27870 | -2/Research | Warped through subspace 27900 | -2/Research | Lost 5 parts (1u4w) 27976 | -2/Research | Discovered new exit (range 14) 27987 | -2/Research | Garrison activated, responded to threat 28002 | -2/Research | High security lockdown imminent 28019 | -2/Research | Entered Access 28019 | -1/Access | Evolved 2 slots: Propulsion x2 28048 | -1/Access | Lost 3 parts (1p2w) 28269 | -1/Access | First assault squad dispatched 28448 | -1/Access | Destroyed 8 combat bots 28578 | -1/Access | Garrison activated, responded to threat 28685 | -1/Access | Warped through subspace 28718 | -1/Access | Found Prototype Device 28718 | -1/Access | Identified Active Sensor Suite 28804 | -1/Access | Warped through subspace 28826 | -1/Access | Garrison activated, responded to threat 28829 | -1/Access | Lost 3 parts (2n1w) 28891 | -1/Access | System corruption reached 10% 28954 | -1/Access | High security lockdown imminent 28975 | -1/Access | Spotted B-99 Colossus 29005 | -1/Access | Found Prototype Processor 29005 | -1/Access | Identified Spectral Analyzer 29010 | -1/Access | Spotted B-99 Colossus 29014 | -1/Access | Spotted B-99 Colossus 29030 | -1/Access | Core integrity fell below 50% 29034 | -1/Access | High security lockdown engaged 29039 | -1/Access | Crushed by falling debris 29047 | -1/Access | Discovered new exit (range 5) 29053 | *** | Destroyed 0b10! Last Messages --------------- 29036_ Com. HERF Cannon destroyed. 29036_ Slug penetrates Sealed Heavy Doors. 29036_ Penetrated by Slug. 29036_ Slug penetrates Sealed Heavy Doors. 29036_ Penetrated by Slug. 29036_ Slug penetrates Sealed Heavy Doors. 29036_ Enh. Hardcell Cannon destroyed. 29039_ The unstable cave ceiling collapses. 29039_ Crushed by falling debris. 29045_ System corrupted: Enh. Nova Cannon failed to cycle. 29047_ Main Access Shell breached. 29047_ EXIT=FOUND Sealed Heavy Doors opened remotely. 29052_ Penetrated by Slug. 29052_ Acquired 7 matter. 29052_ Critical hit (Destroy). 29052_ Exp. Biometal Heavy Treads destroyed. 29052_ Penetrated by Slug. [Achievement: Hardcore] Map ----- +----------------------------------------------------+ | ?????????????????????????????????????????????????? | | ?????????????????????????????????????????????????? | | ?????????????????????????????????????????????????? | | ?????????????????????????????????????????????????? | | ?????????????????????????????????????????????????? | | ?????????????????????????????????????????????????? | | ?????????????????????????????????????????????????? | | ?? ???????????????????????????????????????????? | | #?????????????????????????????????????????? | | #?????????????????????????????????????????? | | #?????????????????????????????????????????? | | #?????????????????????????????????????????? | | #?????????????????????????????????????????? | | +?????????????????????????????????????????? | | #?????????????????????????????????????????? | | " " #?????????????????????????????????????????? | | " " #?????????????????????????????????????????? | | "G"" #?????????????????????????????????????????? | | #?????????????????????????????????????????? | | #??????????????????????##?????????????????? | | % #?##################### ####### ?????????? | | ### #?# ?????????? | | # #?# #????????? | | !# ### #????????? | | ! # #????????? | | # "@ #????????? | | # % BB "" #????????? | | ##" % %% BB #????????? | | ?#####+### uu BB % #????????? | | ?????????# BB """ """ #????????? | | ?????????# % """T""????????????? | | ?????????#########;;#;######## ###???????????????? | | ??????????????## ###???????##?????????????????? | | ???????????????######????????????????????????????? | | ?????????????????????????????????????????????????? | | ?????????????????????????????????????????????????? | | ?????????????????????????????????????????????????? | | ?????????????????????????????????????????????????? | | ?????????????????????????????????????????????????? | | ?????????????????????????????????????????????????? | | ?????????????????????????????????????????????????? | | ?????????????????????????????????????????????????? | | ?????????????????????????????????????????????????? | | ?????????????????????????????????????????????????? | | ?????????????????????????????????????????????????? | | ?????????????????????????????????????????????????? | | ?????????????????????????????????????????????????? | | ?????????????????????????????????????????????????? | | ?????????????????????????????????????????????????? | | ?????????????????????????????????????????????????? | +----------------------------------------------------+ Best States ------------- Heat Dissipation 122 Coolant Potential 120 Energy Generation 67 Energy Capacity 600 Matter Stores 300 Matter Capacity 600 Sight Range 16 Robot Scan Range 20 Terrain Scan Density 210 ECM Strength 3 Power Amplification 30 Base Temperature (-) 200 Armor Coverage 225 Weapon Shielding 66 Point Defense Rating 160 Evasion (%) 63 Targeting Accuracy 14 Target Analysis 8 Core Analysis 8 Recoil Reduction 9 Matter Filtering 50 Particle Charging 20 Offensive Hacking 10 Relay Coupler Types 1 Relay Coupler Value 32 Item Schematics ----------------- Adv. Plasma Cannon | -3/Quarantine | Extracted Imp. Phase Shifter | -3/Quarantine | Extracted Reaction Control System | -3/Quarantine | Extracted Particle Reactor | -3/Quarantine | Extracted Robot Schematics ------------------ None Fabricated ------------ Lgt. Assault Rifle | x3 | -5/Factory Repaired ---------- Lgt. Ion Engine | 15% | -10/Materials Lgt. Treads | 57% | -10/Materials Lgt. Assault Rifle | 55% | -10/Materials Lgt. Treads | 72% | -9/Materials | Broken Weapon Shielding | 52% | -9/Materials Studied --------- None Alien Tech Used ----------------- Integrated Reactor Phase Redirector Core Reset Matrix Transdimensional Reconstructor Phase Armor Sigix Broadsword High-powered Transdimensional Reconstructor Matter Drive Achievements -------------- Hardcore Challenges ------------ None Game ------ Seed FlyingPlasmaTurbovents Manual? 0 Play Time 04:49:12 Cumulative 872.4 hours Start 2026.01.15 @ 16:06:51 End 2026.01.15 @ 21:07:42 Sessions 1 Manual Loads 0 Difficulty Rogue Special Mode None Game No. 341 Rogue 341 Adventurer 0 Explorer 0 Win Type 3 Total 91 Types 44/6/16/8/7/1/1/3/0/5 Lore% 97 Gallery% 91 Achievement% 86 Wizard Run 0 Options --------- Layout 1 ASCII 0 Keyboard 0 Movement Numpad Keybinds 0 Fullscreen 1 Font 24/Smallcaps Map View 50x35 Zoom Use 0% Tactical HUD 1 Map Filters NONE Filters NONE Steam 1 RUN: fc4d29d3-2d2b-43bb-b543-2abd43a6648a